Cogmind - Beta 13 @@@ ROGUE MODE // 2024.04.24 @ 22:57:00 Player: Dosh Result: Escaped! Performance ------------- Evolutions (9) 4500 Regions Visited (33) 6600 Robots Destroyed (441) 2205 Value Destroyed (16247) 16247 Prototype IDs (74) 1480 Alien Tech Used (2) 400 Bonus (13383) 13383 TOTAL SCORE: 44815 Bonus ------- High Alert Combat Kills 2101 Follower Combat Kills 3319 Entered Garrisons 400 Entered DSFs 500 Aligned with FarCom 300 Met Data Miner 300 Acquired ECA 300 Met Zhirov 300 Met Warlord at Base 500 MAIN.C Attacked Warlord 500 Warlord Defense Kills 460 Met Warlord at Research 2000 Win 3000 Friendly Fire -597 Cogmind --------- Core Integrity 1531/1600 Matter 193/300 Energy 766/770 System Corruption 8% Temperature Cool (0) Movement Rolling (170) Ox4 Location To Epsilon Eridani Parts ------- > --- POWER (3) -------- Light Antimatter Reactor Vortex Chain Reactor > --- PROPULSION (4) --- Centrium Wheel Centrium Wheel Centrium Wheel Centrium Wheel > --- UTILITY (17) ----- Advanced Cooling System Cargo Storage Unit Advanced Terrain Scanner Advanced Terrain Scan Processor Quantum Capacitor Advanced Transmission Jammer Experimental Cloaking Device Hardened Heavy Armor Plating Makeshift Ablative Armor Improved Energy Mantle Hacking Suite Improved Hacking Suite Advanced System Shield Ghost Barrier > --- WEAPON (2) ------- Enhanced Nova Cannon Improved Remote Datajack > --- INVENTORY (30) --- Light Antimatter Reactor Improved Fusion Compressor Particle Reactor Wheel Wheel Centrium Wheel Advanced Power Amplifier Advanced Heat Sink Experimental Coolant Injector Energy Well (350) Core Analyzer Quantum Capacitor Improved Focal Shield Advanced Thermal Shield Advanced Force Field Transdimensional Reconstructor Plasma Rifle HERF Cannon HERF Cannon Compact HERF Cannon Nova Cannon Nova Cannon Helical Railgun Smartbomb Launcher Makeshift Axe Peak State ------------ > --- POWER ------------ Light Antimatter Reactor Vortex Chain Reactor > --- PROPULSION ------- Centrium Wheel Centrium Wheel Centrium Wheel Centrium Wheel > --- UTILITY ---------- Advanced Cooling System Cargo Storage Unit Advanced Terrain Scanner Advanced Terrain Scan Processor Quantum Capacitor Advanced Transmission Jammer Experimental Cloaking Device Hardened Heavy Armor Plating Makeshift Ablative Armor Improved Energy Mantle Hacking Suite Improved Hacking Suite Advanced System Shield Ghost Barrier > --- WEAPON ----------- Nova Cannon Enhanced Nova Cannon > --- INVENTORY -------- Light Antimatter Reactor Improved Fusion Compressor Particle Reactor Wheel Wheel Advanced Power Amplifier Advanced Heat Sink Experimental Coolant Injector Energy Well Core Analyzer Quantum Capacitor Improved Focal Shield Advanced Thermal Shield Advanced Force Field Transdimensional Reconstructor Plasma Rifle HERF Cannon HERF Cannon Nova Cannon Helical Railgun Smartbomb Launcher Improved Remote Datajack Makeshift Axe [Rating: 182] Favorites ----------- Power Deuterium Engine Engine Deuterium Engine Power Core Micro Fission Core Reactor Light Antimatter Reactor Propulsion Armored Huge Wheel Wheel Armored Huge Wheel Utility Hacking Suite Device Advanced Heat Sink Storage Cargo Storage Unit Processor Advanced Targeting Computer Hackware Hacking Suite Protection Improved Medium Armor Plating Weapon Improved KE Penetrator Energy Gun Improved Lightning Gun Energy Cannon Compact Ion Cannon Ballistic Gun Improved KE Penetrator Launcher Rocket Launcher Special Weapon Improved Remote Datajack Slashing Weapon Chainsword Piercing Weapon Makeshift Spear Build | -11 -10 -10 -9 -9 -9 -8 -8 -8 -8 -7 -7 -7 -7 -6 -6 -6 -6 -5 -5 -5 -5 -5 -4 -4 -4 -4 -4 -4 -4 -3 -3 -2 -1 ------- Run | Yrd Mat Min Mat Min Exi Min Mat Gar Mat Fac Gar Fac DSF Fac Low Low Dat Pro Fac Upp Upp Zhi Pro Fac Was Fac Upp Upp War Pro Res Res Acc Slots Evolved 18 | . . . 2 . . . 2 . . 2 . . . 2 . . . . 2 . . . . 2 . . . . . . 2 2 2 Power 1 | . . . . . . . . . . 1 . . . . . . . . . . . . . . . . . . . . . . . Propulsion 2 | . . . . . . . . . . . . . . 1 . . . . . . . . . 1 . . . . . . . . . Utility 15 | . . . 2 . . . 2 . . 1 . . . 1 . . . . 2 . . . . 1 . . . . . . 2 2 2 Weapon . | . . . . . . . . . . . . . . . . . . . . . . . . . . . . . . . . . . Parts Attached 412 | 6 11 2 31 4 1 3 21 17 14 27 16 3 8 27 7 5 . 9 36 6 . 6 2 20 6 63 11 . 15 7 8 7 13 Power 49 | 1 1 . 3 . . . 3 . 1 2 3 . . 3 2 . . 4 4 1 . 1 1 3 3 6 3 . 2 1 . . 1 Engine 22 | 1 1 . 3 . . . 3 . 1 2 1 . . 3 . . . 2 2 . . . 1 . . . 1 . 1 . . . . Core 14 | . . . . . . . . . . . 1 . . . 2 . . 1 2 1 . . . 1 . 5 1 . . . . . . Reactor 13 | . . . . . . . . . . . 1 . . . . . . 1 . . . 1 . 2 3 1 1 . 1 1 . . 1 Propulsion 59 | 2 4 2 10 . . . 3 . 2 . 1 . . 3 1 . . 1 5 . . . . 2 . 10 3 . 3 1 1 4 1 Treads . | . . . . . . . . . . . . . . . . . . . . . . . . . . . . . . . . . . Leg . | . . . . . . . . . . . . . . . . . . . . . . . . . . . . . . . . . . Wheel 59 | 2 4 2 10 . . . 3 . 2 . 1 . . 3 1 . . 1 5 . . . . 2 . 10 3 . 3 1 1 4 1 Hover . | . . . . . . . . . . . . . . . . . . . . . . . . . . . . . . . . . . Flight . | . . . . . . . . . . . . . . . . . . . . . . . . . . . . . . . . . . Utility 159 | 1 3 . 10 4 1 1 8 6 5 13 5 1 5 8 3 3 . 1 18 4 . 4 . 7 2 23 2 . 5 1 4 3 8 Device 82 | . 1 . 3 2 . 1 1 1 1 7 3 1 1 4 2 1 . . 11 3 . 3 . 4 . 17 2 . 4 1 3 1 4 Storage 7 | 1 1 . 1 . 1 . 1 . 1 . . . . 1 . . . . . . . . . . . . . . . . . . . Processor 6 | . . . . . . . 1 . . 1 . . 1 . . . . . . . . . . . . 1 . . . . 1 1 . Hackware 12 | . . . 3 . . . . . . 1 . . . . . . . . 3 . . . . 2 . 1 . . . . . . 2 Protection 52 | . 1 . 3 2 . . 5 5 3 4 2 . 3 3 1 2 . 1 4 1 . 1 . 1 2 4 . . 1 . . 1 2 Artifact . | . . . . . . . . . . . . . . . . . . . . . . . . . . . . . . . . . . Weapon 145 | 2 3 . 8 . . 2 7 11 6 12 7 2 3 13 1 2 . 3 9 1 . 1 1 8 1 24 3 . 5 4 3 . 3 Energy Gun 9 | . . . 1 . . . . 1 . 1 3 1 . . . . . . . . . . . . . 1 1 . . . . . . Energy Cannon 35 | . . . 1 . . . . . 2 6 . . 1 8 1 1 . 2 1 . . . . . . 4 1 . 2 2 2 . 1 Ballistic Gun 48 | 2 3 . 5 . . 1 5 5 3 1 . . . . . . . . 5 . . 1 1 5 1 10 . . . . . . . Ballistic Cannon . | . . . . . . . . . . . . . . . . . . . . . . . . . . . . . . . . . . Launcher 22 | . . . 1 . . 1 . 3 . 2 3 . 1 2 . . . . . . . . . . . 5 . . 2 1 1 . . Special Weapon 3 | . . . . . . . . . . . . . . . . . . . 1 . . . . . . . . . . . . . 2 Impact Weapon . | . . . . . . . . . . . . . . . . . . . . . . . . . . . . . . . . . . Slashing Weapon 18 | . . . . . . . . . . . . . . 3 . 1 . 1 2 1 . . . 3 . 4 1 . 1 1 . . . Piercing Weapon 10 | . . . . . . . 2 2 1 2 1 1 1 . . . . . . . . . . . . . . . . . . . . Special Melee Weapon . | . . . . . . . . . . . . . . . . . . . . . . . . . . . . . . . . . . Unidentified Prototypes 22 | . 1 . 1 1 . . . . . 6 1 . 1 . . . . . 2 1 . 3 . . . . . . 4 . . . 1 Corrupted Parts 3 | . . . . . . . . . . . . . . . . . . 2 . . . . . . . . . . . 1 . . . System Corruption 14 | . . . . . . . . . . . . . . . . . . 4 . . . . . . . . . . . 10 . . . Parts Lost 80 | . 2 . 7 2 . 1 3 . 2 6 3 . 1 6 2 1 . 2 7 . . . . 2 . 22 7 . . 1 1 . 2 Power 17 | . . . 1 . . . . . . 1 1 . . 2 1 . . 1 3 . . . . . . 4 3 . . . . . . Propulsion 17 | . 1 . 2 . . . . . . . . . . 1 . . . 1 2 . . . . . . 5 3 . . 1 1 . . Utility 34 | . . . 3 2 . 1 1 . 1 4 2 . . 2 1 1 . . 2 . . . . 1 . 11 1 . . . . . 1 Weapon 12 | . 1 . 1 . . . 2 . 1 1 . . 1 1 . . . . . . . . . 1 . 2 . . . . . . 1 Highest Loss Streak 6 | . 1 . 2 2 . 1 1 . 1 4 2 . 1 4 1 1 . 2 2 . . . . 1 . 6 3 . . 1 1 . 1 To Critical Strikes 2 | . . . . . . . . . . . . . . 1 . . . . . . . . . . . 1 . . . . . . . Average Slot Usage (%) 87 | . 97 100 94 99 100 99 98 100 97 85 86 84 90 88 83 85 86 85 82 81 83 76 81 77 67 74 79 85 84 80 84 82 82 Engine 5 | . 14 14 10 11 11 11 8 9 9 11 6 7 7 7 1 . . 1 3 5 5 5 5 2 . . . 5 2 . . . . Core 2 | . . . . . . . . . . . 2 . . . 10 13 13 9 3 5 11 8 5 5 . 3 13 5 1 . . . . Reactor 3 | . . . . . . . . . . . 3 7 7 4 . . . 1 1 . . 2 5 7 14 10 . 5 8 10 9 8 7 Wheel 14 | . 26 28 21 22 22 22 17 18 15 7 7 7 7 11 13 13 13 12 10 11 11 11 11 9 10 13 19 20 20 15 17 16 15 Device 13 | . 7 . 7 10 11 10 10 2 5 7 14 15 14 18 12 20 20 14 17 16 16 15 16 13 6 12 25 30 26 25 27 25 23 Storage 7 | . 14 14 11 11 11 11 9 9 9 7 7 7 7 6 6 6 6 6 5 5 5 5 5 5 5 5 5 5 5 5 4 4 3 Processor 3 | . . . . . . . 9 9 9 9 7 7 7 6 6 6 6 6 5 . . . . . . 3 . . . . 4 4 3 Hackware 9 | . . . 11 11 11 11 9 9 9 7 7 7 7 6 6 6 6 6 10 11 11 11 11 15 15 13 10 10 10 10 9 8 15 Protection 10 | . 5 14 10 10 11 11 16 24 21 17 11 7 13 12 11 5 6 11 7 11 11 11 11 9 5 3 . . 3 5 4 7 7 Energy Cannon 4 | . . . 4 11 11 7 . . 6 6 . . 6 10 13 12 13 11 1 . . . . . . . 1 5 3 8 7 8 4 Ballistic Gun 7 | . 28 28 17 11 11 14 16 12 8 4 . . . . . . . . 8 10 5 . 3 7 9 5 . . . . . . . Naked Turns . | . . . . . . . . . . . . . . . . . . . . . . . . . . . . . . . . . . Heaviest Build 267 | 12 32 30 61 61 61 61 102 117 124 135 139 139 166 213 210 187 187 195 200 217 217 224 224 233 253 253 196 189 243 243 243 256 267 Greatest Support 64 | 20 26 20 26 24 24 24 24 24 28 28 40 40 40 50 38 38 38 38 56 56 44 44 44 56 56 60 52 52 58 58 58 64 64 Greatest Overweight (x) 13 | . 2 1 2 2 2 2 4 4 5 4 4 4 4 5 5 4 4 6 7 4 4 5 5 8 4 13 4 3 4 5 5 4 4 Average Overweight (x) 3 | . . 1 1 2 2 2 3 4 4 3 3 3 3 2 4 4 4 4 3 3 4 4 5 3 3 3 3 3 3 4 4 3 3 Largest Inventory Capacity 30 | 8 15 15 20 20 20 20 25 25 25 25 25 25 25 30 30 30 30 30 30 30 30 30 30 30 30 30 30 30 30 30 30 30 30 Average Capacity 26 | 6 14 15 17 20 20 20 23 25 25 25 25 25 25 26 30 30 30 30 30 30 30 30 30 30 30 30 30 30 30 30 30 30 30 Most Carried 30 | 2 13 15 20 20 20 20 25 25 25 25 25 24 25 27 30 30 28 29 30 30 29 30 30 30 30 30 30 30 30 30 30 30 28 Average Carried 24 | . 8 14 16 19 19 19 23 24 24 23 24 24 24 25 28 27 28 27 29 29 28 29 29 27 29 24 26 27 29 29 27 29 27 Final Capacity 30 | 8 15 15 20 20 20 20 25 25 25 25 25 25 25 30 30 30 30 30 30 30 30 30 30 30 30 30 30 30 30 30 30 30 30 Final Carried 30 | 2 13 15 19 20 20 20 25 25 25 25 24 24 25 27 28 28 28 28 30 28 29 29 30 26 30 25 29 28 30 29 30 29 27 Class Distribution -------------------- 41% | Mutant 32% | Hauler-Mutant 13% | Hacker-Mutant 7% | Scavenger-Mutant Dominant Class ---------------- Mutant | -10/Materials Mutant | -10/Mines Scavenger-Mutant | -9/Materials Mutant | -9/Mines Mutant | -9/Exiles Mutant | -8/Mines Mutant | -8/Materials Mutant | -8/Garrison Mutant | -8/Materials Mutant | -7/Factory Mutant | -7/Garrison Mutant | -7/Factory Mutant | -7/DSF Mutant | -6/Factory Hauler-Mutant | -6/Lower Caves Hauler-Mutant | -6/Lower Caves Hauler-Mutant | -6/Data Miner Hauler-Mutant | -5/Proximity Caves Hauler-Mutant | -5/Factory Hauler-Mutant | -5/Upper Caves Hauler-Mutant | -5/Upper Caves Hauler-Mutant | -5/Zhirov Hauler-Mutant | -4/Proximity Caves Hacker-Mutant | -4/Factory Hacker-Mutant | -4/Waste Hacker-Mutant | -4/Factory Scavenger-Mutant | -4/Upper Caves Hauler-Mutant | -4/Upper Caves Hauler-Mutant | -4/Warlord Hauler-Mutant | -3/Proximity Caves Hauler-Skirmisher | -3/Research Hauler-Skirmisher | -2/Research Hacker-Skirmisher | -1/Access Resources | -11 -10 -10 -9 -9 -9 -8 -8 -8 -8 -7 -7 -7 -7 -6 -6 -6 -6 -5 -5 -5 -5 -5 -4 -4 -4 -4 -4 -4 -4 -3 -3 -2 -1 ----------- Run | Yrd Mat Min Mat Min Exi Min Mat Gar Mat Fac Gar Fac DSF Fac Low Low Dat Pro Fac Upp Upp Zhi Pro Fac Was Fac Upp Upp War Pro Res Res Acc Matter Collected 10746 | 188 513 152 1026 67 . 108 615 292 688 498 287 . 101 337 137 226 . 170 1162 59 65 . 150 753 258 2072 243 38 159 39 45 191 107 Remotely . | . . . . . . . . . . . . . . . . . . . . . . . . . . . . . . . . . . Salvage Created 18782 | . 733 322 1765 95 . 215 896 259 1469 914 1142 . 367 1664 279 538 . 243 1474 . . . . 916 270 2703 414 62 130 330 333 33 1216 Parts 998 | . 46 17 119 6 . 20 63 36 89 41 39 . 23 83 14 16 . 9 84 . . . . 46 6 143 6 2 6 9 23 . 52 Haulers Intercepted 16 | . 2 . 6 . . . 4 . 3 . . . . . . . . . 1 . . . . . . . . . . . . . . Recyclers Shooed 19 | . 2 . 4 . . . . . . . . . . . . . . . 3 . . . . 3 . 7 . . . . . . . Parts Field Recycled . | . . . . . . . . . . . . . . . . . . . . . . . . . . . . . . . . . . Retrieved Matter . | . . . . . . . . . . . . . . . . . . . . . . . . . . . . . . . . . . Parts Self-Destructed 86 | . . . . . . . . . . . . . . . 7 5 . 8 . 11 16 . 18 . . . 6 2 . 13 . . . Prevented 11 | . . . . . . . . . . . . . . . 4 2 . 1 . . . . 1 . . . . 3 . . . . . Kills | -11 -10 -10 -9 -9 -9 -8 -8 -8 -8 -7 -7 -7 -7 -6 -6 -6 -6 -5 -5 -5 -5 -5 -4 -4 -4 -4 -4 -4 -4 -3 -3 -2 -1 ------- Run | Yrd Mat Min Mat Min Exi Min Mat Gar Mat Fac Gar Fac DSF Fac Low Low Dat Pro Fac Upp Upp Zhi Pro Fac Was Fac Upp Upp War Pro Res Res Acc Combat Hostiles Destroyed 324 | . 9 7 32 4 . 7 19 22 23 15 15 . 11 27 5 3 . 4 23 . . . . 10 1 47 6 1 2 8 8 . 15 Melee 1 | . . . . . . . . . . 1 . . . . . . . . . . . . . . . . . . . . . . . Guns 135 | . 9 7 26 1 . . 19 5 11 3 4 . 1 . . . . . 19 . . . . 10 1 16 3 . . . . . . Cannons 80 | . . . 4 3 . 2 . . 10 4 . . . 19 4 3 . 2 4 . . . . . . 2 2 1 . 2 4 . 14 AOE 87 | . . . 2 . . 4 . 17 1 6 8 . 9 5 1 . . . . . . . . . . 25 . . . 5 4 . . Classes Destroyed 25 | . 6 1 3 1 . . . 1 1 1 1 . 2 1 1 . . . . . . . . . 1 2 1 . 2 . . . . Worker 35 | . 4 3 7 . . 1 . . 5 . . . . 1 . . . . 4 . . . . 4 . 6 . . . . . . . Builder 15 | . . . . . . . . . 2 1 . . . 1 . . . . 1 . . . . 2 . 8 . . . . . . . Tunneler 6 | . 1 . . . . 1 1 . 1 . . . . 1 . . . . . . . . . . . . . . . . . . 1 Hauler 16 | . 2 . 6 . . . 4 . 3 . . . . . . . . . 1 . . . . . . . . . . . . . . Recycler 12 | . 1 . 1 1 . . . . . 3 . . . 1 . . . . 2 . . . . 2 . 1 . . . . . . . Minesweeper 1 | . . . . . . . . . . . . . . . . . . . . . . . . . . . 1 . . . . . . Mechanic 1 | . . . . . . . . . . . . . . . . . . . . . . . . . . 1 . . . . . . . Operator 11 | . . . 6 . . . 1 . 1 . . . . . . . . . 1 . . . . . . . . . . . . 1 1 Watcher 18 | . 2 . 4 . . . 1 . 4 1 . . . . . . . . 2 . . . . . . 2 . . . . 1 . 1 Swarmer 103 | . . 2 9 3 . 4 10 19 10 4 4 . 3 6 3 1 . . 8 . . . . . . 7 . . . 5 5 . . Grunt 112 | . 9 5 15 . . 2 2 . 8 2 10 . 6 7 2 1 . . 9 . . . . 1 . 20 2 1 . 2 . . 8 Brawler 10 | . . . 1 . . 1 . . . 2 . . . 1 . . . . . . . . . 1 . 3 . . . . . . 1 Duelist 3 | . . . . . . . . . . . 1 . . 1 . . . . . . . . . . . 1 . . . . . . . Protector 1 | . . . . . . . . . . . . . . 1 . . . . . . . . . . . . . . . . . . . Sentry 38 | . . . 7 . . . 7 2 6 5 . . . 4 . 1 . 1 . . . . . . . 1 1 . . 1 1 . 1 Demolisher 1 | . . . . 1 . . . . . . . . . . . . . . . . . . . . . . . . . . . . . Specialist 2 | . . . . . . . . . . . . . 1 . . . . . . . . . . . . 1 . . . . . . . Hunter 19 | . . . . . . . . 1 . . . . . 4 . . . 1 1 . . . . 2 . 8 . . . . 2 . . Programmer 32 | . . . . . . . . . . 2 . . . 3 . . . 2 5 . . . . 6 . 6 3 . . . . . 5 Heavy 1 | . . . . . . . . . . . . . 1 . . . . . . . . . . . . . . . . . . . . Behemoth 1 | . . . . . . . . . . . . . . . . . . . . . . . . . . 1 . . . . . . . Compactor 1 | . . . . . . . . . . . . . . . . . . . . . . . . . 1 . . . . . . . . Striker 1 | . . . . . . . . . . . . . . . . . . . . . . . . . . . . . 1 . . . . Executioner 1 | . . . . . . . . . . . . . . . . . . . . . . . . . . . . . 1 . . . . Decomposer 1 | . . . . . . . . . . . . . . . 1 . . . . . . . . . . . . . . . . . . Samaritan 1 | . . . . . . . . . . . . . . . 1 . . . . . . . . . . . . . . . . . . Best Kill Streak 12 | . 8 3 5 3 . 4 4 7 10 12 4 . 9 6 3 3 . 2 6 . . . . 4 1 12 2 1 1 5 5 2 4 Combat Bots Only 10 | . 3 2 4 3 . 4 4 7 3 9 4 . 9 4 3 3 . 2 6 . . . . 2 1 10 2 1 1 5 5 . 4 Max Kills in Single Turn 5 | . 1 1 2 1 . 3 2 3 3 4 2 . 5 2 1 1 . 1 2 . . . . 3 1 4 1 1 1 4 3 1 1 Gunslinging 1 | . . . . . . . 1 . . . . . . . . . . . . . . . . . . . . . . . . . . Exploded 5 | . . . 2 . . 3 . 3 1 4 2 . 5 2 1 . . . . . . . . . . 3 . . . 4 3 . . Melee 1 | . . . . . . . . . . 1 . . . . . . . . . . . . . . . . . . . . . . . Uniques/NPCs Destroyed . | . . . . . . . . . . . . . . . . . . . . . . . . . . . . . . . . . . Combat | -11 -10 -10 -9 -9 -9 -8 -8 -8 -8 -7 -7 -7 -7 -6 -6 -6 -6 -5 -5 -5 -5 -5 -4 -4 -4 -4 -4 -4 -4 -3 -3 -2 -1 -------- Run | Yrd Mat Min Mat Min Exi Min Mat Gar Mat Fac Gar Fac DSF Fac Low Low Dat Pro Fac Upp Upp Zhi Pro Fac Was Fac Upp Upp War Pro Res Res Acc Hostile Shots Fired 2120 | . 66 25 125 24 . 27 96 42 94 221 54 . 29 239 27 22 . 33 167 . . . . 176 . 439 37 9 3 33 37 . 95 Missed 587 | . 24 9 36 4 . 5 29 12 26 86 6 . 6 76 9 8 . 3 39 . . . . 62 . 76 12 5 1 7 15 . 31 Damage Taken 19622 | . 544 190 1019 201 . 267 843 312 881 1345 653 . 582 1581 296 185 . 624 2112 . 5 . 17 1017 . 4913 526 49 57 267 278 . 858 Core 1769 | . 162 9 199 41 . 12 103 16 86 71 63 . 83 222 45 . . 42 130 . . . . 51 . 277 39 . 13 20 16 . 69 Absorbed by Shields 4204 | . . . 92 71 . 43 . . . . 166 . 150 451 . . . . 243 . 4 . 16 906 . 831 . 26 57 255 265 . 628 Redirected to Shielding 355 | . 2 2 2 . . . . . . . 79 . . 19 53 92 . . . . . . . . . 106 . . . . . . . Ignored by Resistances 1751 | . . . . . . . . . 60 113 . . 29 406 . . . . . . 5 . 16 248 . 851 . . 9 14 . . . Regen/Repaired (Parts) 1381 | . 30 . 188 . . . 350 . . . . . . . . . . . 390 . . . . 248 . . . . 175 . . . . Core Remaining (%) 73 | 100 . 31 . . . 37 . . 62 . . . 69 . . . . 63 . . . . 87 . . . . . . 65 98 100 95 Volleys Fired 1377 | . 66 22 136 11 . 17 71 36 91 57 34 . 13 83 34 8 . 14 107 . . . 8 70 20 190 53 11 30 25 34 11 125 Largest 2 | . 2 2 2 2 . 2 2 2 2 2 2 . 2 2 2 2 . 2 2 . . . 1 2 2 2 1 1 1 2 1 1 2 Hottest 233 | . 46 46 91 91 . 91 46 83 97 97 120 . 160 190 190 190 . 190 115 . . . 33 66 66 121 98 98 113 211 113 113 233 Shots Fired 2201 | . 131 44 271 22 . 34 142 54 174 89 57 . 20 132 46 14 . 29 195 1 2 . 9 124 39 280 51 11 30 26 34 11 129 Gun 1462 | . 131 44 242 11 . 19 142 44 122 52 46 . 13 . . . . . 173 1 2 . 9 124 39 230 18 . . . . . . Cannon 666 | . . . 27 11 . 13 . . 52 33 . . 2 126 46 14 . 29 20 . . . . . . 26 33 11 30 24 31 11 127 Launcher 69 | . . . 2 . . 2 . 10 . 4 11 . 5 6 . . . . . . . . . . . 24 . . . 2 3 . . Special 4 | . . . . . . . . . . . . . . . . . . . 2 . . . . . . . . . . . . . 2 Kinetic 1326 | . 131 44 242 11 . 19 142 43 91 52 . . . . . . . . 173 1 2 . 9 124 39 203 . . . . . . . Thermal 543 | . . . 27 11 . 13 . . . . . . . 96 34 8 . 27 15 . . . . . . 27 51 11 30 24 31 11 127 Explosive 64 | . . . 2 . . 2 . 10 . 4 9 . 5 3 . . . . . . . . . . . 24 . . . 2 3 . . Electromagnetic 264 | . . . . . . . . 1 83 33 48 . 15 33 12 6 . 2 5 . . . . . . 26 . . . . . . . Robot Hit Streak 21 | . 10 13 21 5 . 8 16 15 19 13 12 . 11 16 3 4 . 6 14 . . . . 8 11 13 15 4 7 8 5 4 9 Robot Miss Streak 8 | . 5 2 5 3 . 1 3 3 4 6 3 . 1 8 3 3 . 3 4 . . . 1 4 3 7 1 3 3 2 3 2 3 Penetration Max 1 | . . . . . . . . . 1 1 . . . . . . . . 1 . . . . 1 . 1 . . . . . . . Secondary Targets 9 | . 1 1 1 . . . 1 . . . . . . . . . . . 1 . . . . 1 . 3 . . . . . . . Max Gunslinging Chain 1 | . 1 1 1 . . . 1 . . . . . . . . . . . 1 . . . . 1 . 1 . . . . . . . Capacitor 323 | . . . . . . . . . . . . . . . . . . . . . . . . . . 46 51 11 30 22 31 11 121 Shots Hit Robots 1424 | . 76 29 173 12 . 19 100 25 118 69 49 . 15 100 19 19 . 18 126 . . . . 75 30 171 45 5 19 18 18 4 72 Core Hits 744 | . 34 15 70 6 . 11 40 24 54 38 41 . 21 62 9 10 . 6 52 . . . . 36 9 139 13 2 5 10 14 2 21 Critical Kills 17 | . . 1 . . . 1 . . . . . . . . . . . 2 3 . . . . 2 1 4 . . 1 . . . 2 Critical Parts Destroyed 26 | . . 1 . . . . . . 1 3 . . . . . . . . 6 . . . . 9 . 6 . . . . . . . Critical Strikes 50 | . . 2 . . . 1 . . 1 3 2 . . . . . . 2 9 . . . . 11 3 12 1 . 1 . . . 2 Burn 2 | . . . . . . . . . . . . . . . . . . . . . . . . . . 1 1 . . . . . . Meltdown 6 | . . . . . . 1 . . . . . . . . . . . 2 . . . . . . . . . . 1 . . . 2 Destroy 40 | . . 2 . . . . . . 1 3 . . . . . . . . 9 . . . . 11 3 11 . . . . . . . Impale 2 | . . . . . . . . . . . 2 . . . . . . . . . . . . . . . . . . . . . . Melee Attacks 141 | . . . . . . . 4 16 2 19 21 1 8 6 . 12 . 1 5 1 . . 3 8 . 27 . . 7 . . . . Impact . | . . . . . . . . . . . . . . . . . . . . . . . . . . . . . . . . . . Slashing 70 | . . . . . . . . . . . . . . 6 . 12 . 1 5 1 . . 3 8 . 27 . . 7 . . . . Piercing 71 | . . . . . . . 4 16 2 19 21 1 8 . . . . . . . . . . . . . . . . . . . . Sneak Attacks 7 | . . . . . . . . . . 1 . . . 2 . . . . 2 . . . . 1 . 1 . . . . . . . Combat Hostiles . | . . . . . . . . . . . . . . . . . . . . . . . . . . . . . . . . . . Follow-up Attacks . | . . . . . . . . . . . . . . . . . . . . . . . . . . . . . . . . . . Damage Inflicted 51206 | . 950 451 3110 247 . 505 1600 1381 3113 2349 3028 . 1443 4055 565 853 . 583 3401 . . . . 2612 839 11788 1396 168 786 1186 1513 153 3131 Guns 20652 | . 950 451 2540 52 . 159 1600 350 1791 790 620 . 212 . . . . . 2897 . . . . 2522 839 4478 401 . . . . . . Cannons 14457 | . . . 381 195 . 164 . . 1131 616 . . 87 2768 491 297 . 583 365 . . . . . . 780 995 168 786 668 698 153 3131 Explosions 13644 | . . . 189 . . 182 . 1031 163 721 1295 . 1144 1152 74 . . . . . . . . . . 6360 . . . 518 815 . . Melee 2397 | . . . . . . . . . . 222 1113 . . 135 . 556 . . 139 . . . . 90 . 142 . . . . . . . Ramming 56 | . . . . . . . . . 28 . . . . . . . . . . . . . . . . 28 . . . . . . . Kinetic 18418 | . 950 451 2540 52 . 159 1600 350 1214 790 . . . . . . . . 2897 . . . . 2522 839 4054 . . . . . . . Thermal 12397 | . . . 381 195 . 164 . . 163 . 107 . 78 2384 318 194 . 583 266 . . . . . . 564 1396 168 786 668 698 153 3131 Explosive 12007 | . . . 189 . . 182 . 1031 . 721 952 . 1066 313 . . . . . . . . . . . 6220 . . . 518 815 . . Electromagnetic 5931 | . . . . . . . . . 1708 616 856 . 299 1223 247 103 . . 99 . . . . . . 780 . . . . . . . Impact . | . . . . . . . . . . . . . . . . . . . . . . . . . . . . . . . . . . Slashing 1062 | . . . . . . . . . . . . . . 135 . 556 . . 139 . . . . 90 . 142 . . . . . . . Piercing 1335 | . . . . . . . . . . 222 1113 . . . . . . . . . . . . . . . . . . . . . . Highest Corruption 29 | . . . . . . . . . . 6 2 1 1 1 1 1 . 7 10 6 6 6 6 11 18 26 29 29 29 10 . . 8 Average Corruption 9 | . . . . . . . . . . 4 1 1 1 1 1 1 . 2 4 6 6 6 6 6 17 22 28 29 29 10 . . 4 Corruption Purged 10 | . . . . . . . . . . 4 1 . . . . 1 . . 4 . . . . . . . . . . . . . . Corruption Blocked 3 | . . . . . . . . . . . . . . . . . . . . . . . . . . . . . . . . 3 . Effects 447 | . . . . . . . . . . 22 6 2 3 6 9 1 . 6 45 13 16 6 27 42 14 142 38 19 3 . . . 27 Message Errors 91 | . . . . . . . . . . 6 1 . 2 3 4 . . 1 8 3 2 1 4 17 2 17 8 3 1 . . . 8 Matter Fused 96 | . . . . . . . . . . 4 1 . . 1 1 1 . 2 14 2 2 . 8 7 3 29 8 4 1 . . . 8 Heat Flow Errors 51 | . . . . . . . . . . 4 . . . 1 1 . . . 6 2 4 2 1 5 2 14 4 3 1 . . . 1 Energy Discharges 50 | . . . . . . . . . . 3 . 2 1 . . . . 1 5 2 4 1 3 5 1 12 6 3 . . . . 1 Parts Rejected 10 | . . . . . . . . . . 1 . . . . . . . . . . . . 1 2 . 5 . . . . . . 1 Parts Fused 4 | . . . . . . . . . . . . . . . . . . . 1 . . . . . . 3 . . . . . . . Data Loss (minor) 74 | . . . . . . . . . . 3 3 . . 1 1 . . 1 7 1 2 . 7 3 2 33 4 2 . . . . 4 Data Loss (major) 23 | . . . . . . . . . . 1 . . . . 1 . . . 1 1 . 1 . 2 1 9 3 1 . . . . 2 Misfires 17 | . . . . . . . . . . . 1 . . . 1 . . 1 1 1 2 . 1 1 1 3 1 1 . . . . 2 Alerts 9 | . . . . . . . . . . . . . . . . . . . . 1 . 1 2 . . 4 1 . . . . . . Misdirections 4 | . . . . . . . . . . . . . . . . . . . . . . . . . . 3 . 1 . . . . . Weapon Failures 18 | . . . . . . . . . . . . . . . . . . . 2 . . . . . 2 10 3 1 . . . . . Overload Shots . | . . . . . . . . . . . . . . . . . . . . . . . . . . . . . . . . . . Overflow Damage 1358 | . . . 27 3 . . . 201 37 65 40 . 38 61 37 180 . 7 30 . . . . 20 . 192 54 25 . 28 126 . 187 Projectiles 528 | . . . 11 3 . . . . 37 41 . . . 12 37 11 . 7 2 . . . . . . 44 54 25 . 28 29 . 187 Explosions 471 | . . . 16 . . . . 201 . 1 . . 38 10 . . . . . . . . . . . 108 . . . . 97 . . Melee 359 | . . . . . . . . . . 23 40 . . 39 . 169 . . 28 . . . . 20 . 40 . . . . . . . Knockbacks 1 | . . . . . . . . . . . . . . . . . . . . . . . . . . 1 . . . . . . . Impact 1 | . . . . . . . . . . . . . . . . . . . . . . . . . . 1 . . . . . . . Kinetic . | . . . . . . . . . . . . . . . . . . . . . . . . . . . . . . . . . . Secondary . | . . . . . . . . . . . . . . . . . . . . . . . . . . . . . . . . . . Self-Inflicted Damage 407 | . . . . . . . . . 14 17 47 . 83 49 . . . . . . . . . . . 97 . . . . 100 . . Shots 12 | . . . . . . . . . . 2 2 . 3 1 . . . . . . . . . . . 1 . . . . 3 . . Rammed 2 | . . . . . . . . . 1 . . . . . . . . . . . . . . . . 1 . . . . . . . Targets Rammed 2 | . . . . . . . . . 1 . . . . . . . . . . . . . . . . 1 . . . . . . . Kicked . | . . . . . . . . . . . . . . . . . . . . . . . . . . . . . . . . . . Crushed . | . . . . . . . . . . . . . . . . . . . . . . . . . . . . . . . . . . Highest Temperature 482 | . 26 20 189 231 . 339 7 33 324 229 344 . 132 375 379 284 . 366 482 225 247 265 152 221 210 394 181 189 200 200 200 200 200 Average Temperature 99 | . 7 6 43 89 . 195 4 17 115 47 87 . 58 108 124 112 . 168 149 99 85 110 82 38 54 113 28 45 111 157 117 86 121 Received Heat Transfer 4442 | . 336 99 439 . . 111 234 81 342 276 313 . 50 317 54 45 . 36 432 . . . . 98 . 927 72 12 . 46 8 . 114 Effects 32 | . . . . . . . . . 1 1 2 . . 7 1 . . 2 7 . . . . . . 3 . . . 2 . 3 3 Shutdowns 8 | . . . . . . . . . . . 1 . . 2 1 . . 1 2 . . . . . . 1 . . . . . . . Energy Bleed 9 | . . . . . . . . . 1 1 . . . 4 . . . . 1 . . . . . . 2 . . . . . . . Interference 9 | . . . . . . . . . . . . . . . . . . . 1 . . . . . . . . . . 2 . 3 3 Matter Decay 1 | . . . . . . . . . . . . . . . . . . 1 . . . . . . . . . . . . . . . Short Circuit 1 | . . . . . . . . . . . . . . 1 . . . . . . . . . . . . . . . . . . . Damage (minor) 1 | . . . . . . . . . . . 1 . . . . . . . . . . . . . . . . . . . . . . Damage (major) 3 | . . . . . . . . . . . . . . . . . . . 3 . . . . . . . . . . . . . . Siege Activations . | . . . . . . . . . . . . . . . . . . . . . . . . . . . . . . . . . . Robots Corrupted 14 | . . . . . . . . . 2 1 3 . 1 3 . . . . . . . . . . . 4 . . . . . . . Combat Hostiles 13 | . . . . . . . . . 1 1 3 . 1 3 . . . . . . . . . . . 4 . . . . . . . Parts Fried 52 | . . . . . . . . . 12 6 6 . 3 12 . . . . 2 . . . . . . 11 . . . . . . . Impact Corruptions . | . . . . . . . . . . . . . . . . . . . . . . . . . . . . . . . . . . Robots Melted 9 | . . . . . . 1 . . . . . . . . . . . 2 . . . . . . . . 1 . 2 1 . . 2 Combat Hostiles 8 | . . . . . . 1 . . . . . . . . . . . 2 . . . . . . . . 1 . 2 1 . . 1 Parts Melted 37 | . . . 1 2 . 1 . . 1 . . . . 4 . . . 3 . . . . . . . 7 8 1 1 2 1 1 4 Heat Transferred 14828 | . . . 629 333 . 296 . . 150 . 150 . . 2890 383 259 . 666 333 . . . . . . 1050 2350 250 962 642 692 148 2645 Parts Sabotaged . | . . . . . . . . . . . . . . . . . . . . . . . . . . . . . . . . . . Parts Stolen . | . . . . . . . . . . . . . . . . . . . . . . . . . . . . . . . . . . Parts Stripped . | . . . . . . . . . . . . . . . . . . . . . . . . . . . . . . . . . . Power Chain Reactions 8 | . . . . . . . . . 2 . 1 . 1 2 1 . . . . . . . . . . 1 . . . . . . . Alert | -11 -10 -10 -9 -9 -9 -8 -8 -8 -8 -7 -7 -7 -7 -6 -6 -6 -6 -5 -5 -5 -5 -5 -4 -4 -4 -4 -4 -4 -4 -3 -3 -2 -1 ------- Run | Yrd Mat Min Mat Min Exi Min Mat Gar Mat Fac Gar Fac DSF Fac Low Low Dat Pro Fac Upp Upp Zhi Pro Fac Was Fac Upp Upp War Pro Res Res Acc Peak Influence 1652 | . 214 197 576 241 . 116 339 755 571 345 730 383 530 695 . . . . 508 . . . . 452 111 1652 . . . . 289 155 707 Initial 382 | . . 31 37 171 . . 44 91 367 75 117 382 268 277 . . . . . . . . . 150 109 63 . . . . 74 111 92 Average 305 | . 55 116 342 92 . 78 145 544 274 167 490 382 370 429 . . . . 148 . . . . 169 99 694 . . . . 190 146 454 Maximum Alert Level 5 | . 1 . 2 1 . . 1 3 2 1 3 1 2 2 . . . . 2 . . . . 2 . 5 . . . . 1 . 3 Low Security (%) 43 | 100 97 100 13 85 . 100 63 15 21 72 7 . . . . . . . 76 . . . . 62 100 23 . . . . 42 100 7 Level 1 28 | . 2 . 50 14 . . 36 11 66 27 4 100 67 46 . . . . 14 . . . . 33 . 7 . . . . 57 . 22 Level 2 19 | . . . 36 . . . . 29 11 . 78 . 32 53 . . . . 8 . . . . 4 . 24 . . . . . . 57 Level 3 4 | . . . . . . . . 43 . . 8 . . . . . . . . . . . . . . 13 . . . . . . 12 Level 4 3 | . . . . . . . . . . . . . . . . . . . . . . . . . . 28 . . . . . . . Level 5 . | . . . . . . . . . . . . . . . . . . . . . . . . . . 3 . . . . . . . High Security . | . . . . . . . . . . . . . . . . . . . . . . . . . . . . . . . . . . Max Security . | . . . . . . . . . . . . . . . . . . . . . . . . . . . . . . . . . . Sterilizations 1 | . . . . . . . . . . . . . 1 . . . . . . . . . . . . . . . . . . . . Squads Dispatched 79 | . 2 . 7 . . . 3 . 3 5 . . 1 12 . . . . 8 . . . . 8 . 20 . . . . 2 2 6 Investigation 20 | . 2 . 2 . . . 1 . 1 2 . . . 5 . . . . 2 . . . . . . 5 . . . . . . . Extermination 18 | . . . . . . . . . . 3 . . . 2 . . . . 3 . . . . 4 . 4 . . . . . . 2 Reinforcement 28 | . . . 5 . . . 1 . 2 . . . 1 2 . . . . 1 . . . . 3 . 5 . . . . 2 2 4 Assault 4 | . . . . . . . . . . . . . . 2 . . . . . . . . . . . 2 . . . . . . . Garrison 9 | . . . . . . . 1 . . . . . . 1 . . . . 2 . . . . 1 . 4 . . . . . . . Intercept . | . . . . . . . . . . . . . . . . . . . . . . . . . . . . . . . . . . Searches Triggered . | . . . . . . . . . . . . . . . . . . . . . . . . . . . . . . . . . . Construction Impeded 6 | . . . . . . . . . . . . . . . . . . . . . . . . 1 . 3 . . . . 1 . 1 Haulers Reinforced 3 | . . . . . . . . . . . . . . 1 . . . . . . . . . 1 . . . . . . . . 1 Active Scanning Responses . | . . . . . . . . . . . . . . . . . . . . . . . . . . . . . . . . . . Cargo Convoy Interrupts 1 | . . . . . . . . . . 1 . . . . . . . . . . . . . . . . . . . . . . . Stealth | -11 -10 -10 -9 -9 -9 -8 -8 -8 -8 -7 -7 -7 -7 -6 -6 -6 -6 -5 -5 -5 -5 -5 -4 -4 -4 -4 -4 -4 -4 -3 -3 -2 -1 --------- Run | Yrd Mat Min Mat Min Exi Min Mat Gar Mat Fac Gar Fac DSF Fac Low Low Dat Pro Fac Upp Upp Zhi Pro Fac Was Fac Upp Upp War Pro Res Res Acc Distress Signals 48 | . 2 . 8 . . . 1 . 7 3 . . . 4 . . . . 2 . . . . 1 . 10 . . 1 . . 7 2 Communications Jammed 51 | . . . . . . . . . . . . . . . . . . . . . . . . . . . . . . . 3 . 48 Distress Signals 50 | . . . . . . . . . . . . . . . . . . . . . . . . . . . . . . . 3 . 47 Times Spotted 575 | . 17 9 49 4 . 7 23 19 36 24 20 . 11 42 6 3 . 4 48 5 4 . 4 28 6 99 6 7 43 8 12 1 30 Peak Tracking Total 10 | . 5 2 7 3 . 4 4 6 4 9 6 . 8 6 4 3 . 2 5 4 4 . 2 7 2 10 2 4 7 5 5 1 8 Tactical Retreats 35 | . . 1 5 . . . 1 1 3 3 2 . . 3 . . . . 7 . . . . . . 3 . 2 2 . . . 2 Traps | -11 -10 -10 -9 -9 -9 -8 -8 -8 -8 -7 -7 -7 -7 -6 -6 -6 -6 -5 -5 -5 -5 -5 -4 -4 -4 -4 -4 -4 -4 -3 -3 -2 -1 ------- Run | Yrd Mat Min Mat Min Exi Min Mat Gar Mat Fac Gar Fac DSF Fac Low Low Dat Pro Fac Upp Upp Zhi Pro Fac Was Fac Upp Upp War Pro Res Res Acc Traps Triggered 20 | . 1 . 2 . . . . 2 1 1 5 . 2 2 . . . . . . . . . 2 . 1 . . 1 . . . . Indirectly . | . . . . . . . . . . . . . . . . . . . . . . . . . . . . . . . . . . Trap Hack Attempts . | . . . . . . . . . . . . . . . . . . . . . . . . . . . . . . . . . . Triggered . | . . . . . . . . . . . . . . . . . . . . . . . . . . . . . . . . . . Disarmed . | . . . . . . . . . . . . . . . . . . . . . . . . . . . . . . . . . . Reprogrammed . | . . . . . . . . . . . . . . . . . . . . . . . . . . . . . . . . . . Reused 7 | . . . . . . . . . . 1 . . . . . . . . . . . . . . . 3 . 3 . . . . . Traps Extracted 1 | . . . . . . . . . . 1 . . . . . . . . . . . . . . . . . . . . . . . Installed 11 | . . . . . . . . . . 2 . . . . . . . 1 . . . . . . . 3 1 4 . . . . . Triggered 19 | . . . . . . . . . . 1 . . . . 1 . . 2 . . . . 2 . . 3 . 3 7 . . . . Most Traps Carried 4 | . . . . . . . . 4 4 4 3 3 3 3 3 3 3 3 3 3 3 3 3 3 3 3 4 4 . . . . . Machines | -11 -10 -10 -9 -9 -9 -8 -8 -8 -8 -7 -7 -7 -7 -6 -6 -6 -6 -5 -5 -5 -5 -5 -4 -4 -4 -4 -4 -4 -4 -3 -3 -2 -1 ---------- Run | Yrd Mat Min Mat Min Exi Min Mat Gar Mat Fac Gar Fac DSF Fac Low Low Dat Pro Fac Upp Upp Zhi Pro Fac Was Fac Upp Upp War Pro Res Res Acc Machines Disabled 42 | . . . 4 . . . 1 6 2 . 2 . . 4 . . . . 4 . . . . 4 . 10 . . . . 1 2 2 Max in Single Turn 2 | . . . 1 . . . 1 1 1 . 1 . . 2 . . . . 1 . . . . 1 . 2 . . . . 1 1 . Garrison Access 2 | . . . . . . . . . . . . . . 1 . . . . . . . . . . . 1 . . . . . . . Garrison Relay 1 | . . . . . . . . . . . 1 . . . . . . . . . . . . . . . . . . . . . . Machines Repaired . | . . . . . . . . . . . . . . . . . . . . . . . . . . . . . . . . . . Machines Dismantled . | . . . . . . . . . . . . . . . . . . . . . . . . . . . . . . . . . . Machines Sabotaged . | . . . . . . . . . . . . . . . . . . . . . . . . . . . . . . . . . . Overloaded Fab Kills . | . . . . . . . . . . . . . . . . . . . . . . . . . . . . . . . . . . Hacking | -11 -10 -10 -9 -9 -9 -8 -8 -8 -8 -7 -7 -7 -7 -6 -6 -6 -6 -5 -5 -5 -5 -5 -4 -4 -4 -4 -4 -4 -4 -3 -3 -2 -1 --------- Run | Yrd Mat Min Mat Min Exi Min Mat Gar Mat Fac Gar Fac DSF Fac Low Low Dat Pro Fac Upp Upp Zhi Pro Fac Was Fac Upp Upp War Pro Res Res Acc Machines Accessed 102 | . 10 1 9 . 2 . 7 2 13 7 1 1 . 11 . . 4 . 7 . . 4 . 4 . 9 1 . . . 2 . 7 Terminals 59 | . 8 1 7 . . . 5 2 10 1 1 1 . 4 . . . . 3 . . . . 3 . 3 1 . . . 2 . 7 Fabricators 14 | . . . . . . . . . . 3 . . . 5 . . . . 3 . . . . . . 3 . . . . . . . Repair Stations 7 | . 1 . 1 . . . 1 . . 1 . . . . . . . . 1 . . . . 1 . 1 . . . . . . . Recycling Units 2 | . 1 . . . . . . . . . . . . . . . . . . . . . . . . 1 . . . . . . . Scanalyzers 3 | . . . 1 . . . . . 2 . . . . . . . . . . . . . . . . . . . . . . . . Garrison Access 7 | . . . . . . . 1 . 1 2 . . . 2 . . . . . . . . . . . 1 . . . . . . . Total Hacks 345 | . 25 2 31 . 2 . 35 4 44 13 3 2 . 30 . . 30 . 29 . . 16 . 20 . 27 2 . . . 4 . 26 Successful 203 | . 16 . 17 . 2 . 23 2 28 5 1 1 . 13 . . 30 . 17 . . 16 . 10 . 10 2 . . . 2 . 8 Failed 140 | . 8 2 13 . . . 12 2 16 8 2 1 . 17 . . . . 12 . . . . 10 . 17 . . . . 2 . 18 Catastrophic 30 | . . 1 1 . . . 3 1 2 1 . . . 5 . . . . 2 . . . . 1 . 4 . . . . 1 . 8 Database Lockouts 2 | . 1 . 1 . . . . . . . . . . . . . . . . . . . . . . . . . . . . . . Manual 104 | . 11 2 14 . 1 . 14 2 18 2 2 . . 6 . . . . 10 . . . . 3 . 7 . . 2 . 2 . 8 Terminals 183 | . 19 2 20 . . . 19 4 30 2 3 2 . 12 . . . . 13 . . . . 15 . 10 2 . . . 4 . 26 Fabricators 42 | . . . . . . . . . . 5 . . . 14 . . . . 10 . . . . . . 13 . . . . . . . Repair Stations 44 | . 5 . 8 . . . 15 . . 3 . . . . . . . . 6 . . . . 5 . 2 . . . . . . . Recycling Units 2 | . 1 . . . . . . . . . . . . . . . . . . . . . . . . 1 . . . . . . . Scanalyzers 14 | . . . 3 . . . . . 11 . . . . . . . . . . . . . . . . . . . . . . . . Garrison Access 12 | . . . . . . . 1 . 3 3 . . . 4 . . . . . . . . . . . 1 . . . . . . . Terminal Hacks 112 | . 10 . 7 . 2 . 6 2 16 . 1 1 . 3 . . 30 . 2 . . 16 . 6 . 1 2 . . . 1 . 6 Record 19 | . . . . . 1 . . . . . . . . . . . 11 . . . . 5 . . . . 2 . . . . . . Part Schematic 15 | . 2 . . . . . . . . . . . . . . . 10 . . . . 3 . . . . . . . . . . . Robot Schematic 7 | . . . . . . . . . 1 . . . . . . . 6 . . . . . . . . . . . . . . . . Robot Analysis 11 | . 2 . 1 . . . 2 . 2 . . . . . . . . . . . . 4 . . . . . . . . . . . Prototype ID Bank 15 | . 1 . 3 . . . 3 . 1 . . . . . . . 3 . . . . 4 . . . . . . . . . . . Open Door 1 | . . . . . . . . . . . . . . . . . . . . . . . . . . . . . . . . . 1 Open DSF 1 | . . . . . . . . . . . . 1 . . . . . . . . . . . . . . . . . . . . . Branch Access Points 5 | . . . . . . . . . . . . . . 1 . . . . 1 . . . . 1 . . . . . . 1 . 1 Emergency Access Points 3 | . 1 . . . . . . 1 . . 1 . . . . . . . . . . . . . . . . . . . . . . Terminal Index 2 | . . . . . . . . . . . . . . 1 . . . . . . . . . . . . . . . . . . 1 Fabricator Index 1 | . . . . . . . . . . . . . . . . . . . . . . . . 1 . . . . . . . . . Repair Station Index 1 | . 1 . . . . . . . . . . . . . . . . . . . . . . . . . . . . . . . . Alert Level 11 | . . . 1 . . . . . 5 . . . . 1 . . . . 1 . . . . 1 . 1 . . . . . . 1 Unreport Threat 10 | . 1 . 2 . . . 1 . 3 . . . . . . . . . . . . . . 2 . . . . . . . . 1 Locate Traps 5 | . 1 . . . . . . . 3 . . . . . . . . . . . . . . . . . . . . . . . 1 Patrol Status 1 | . . . . . . . . . . . . . . . . . . . . . . . . 1 . . . . . . . . . Zone Layout 2 | . 1 . . . . . . . 1 . . . . . . . . . . . . . . . . . . . . . . . . Security Stations 1 | . . . . . . . . 1 . . . . . . . . . . . . . . . . . . . . . . . . . Derelict Proto ID Bank 1 | . . . . . 1 . . . . . . . . . . . . . . . . . . . . . . . . . . . . Fabricator Hacks 23 | . . . . . . . . . . 3 . . . 6 . . . . 9 . . . . . . 5 . . . . . . . Network Status 4 | . . . . . . . . . . 1 . . . 1 . . . . 1 . . . . . . 1 . . . . . . . Load Schematic 8 | . . . . . . . . . . . . . . 2 . . . . 4 . . . . . . 2 . . . . . . . Build 11 | . . . . . . . . . . 2 . . . 3 . . . . 4 . . . . . . 2 . . . . . . . Repair Station Hacks 35 | . 4 . 8 . . . 14 . . 1 . . . . . . . . 4 . . . . 4 . . . . . . . . . Scan Component 18 | . 2 . 4 . . . 7 . . 1 . . . . . . . . 2 . . . . 2 . . . . . . . . . Repair 17 | . 2 . 4 . . . 7 . . . . . . . . . . . 2 . . . . 2 . . . . . . . . . Recycling Unit Hacks 1 | . . . . . . . . . . . . . . . . . . . . . . . . . . 1 . . . . . . . Retrieve Components 1 | . . . . . . . . . . . . . . . . . . . . . . . . . . 1 . . . . . . . Scanalyzer 10 | . . . . . . . . . 10 . . . . . . . . . . . . . . . . . . . . . . . . Insert Component 5 | . . . . . . . . . 5 . . . . . . . . . . . . . . . . . . . . . . . . Analyze 5 | . . . . . . . . . 5 . . . . . . . . . . . . . . . . . . . . . . . . Garrison Access Hacks 4 | . . . . . . . 1 . . 1 . . . 1 . . . . . . . . . . . 1 . . . . . . . Unlock Access 2 | . . . . . . . 1 . . 1 . . . . . . . . . . . . . . . . . . . . . . . Seal Access 2 | . . . . . . . . . . . . . . 1 . . . . . . . . . . . 1 . . . . . . . Unauthorized Hacks 18 | . 2 . 2 . . . 2 . 2 . . . . 3 . . . . 2 . . . . . . 2 . . . . 1 . 2 Terminals 13 | . 1 . 1 . . . 2 . 2 . . . . 1 . . . . 2 . . . . . . 1 . . . . 1 . 2 Track 1 | . . . . . . . . . 1 . . . . . . . . . . . . . . . . . . . . . . . . Assimilate 1 | . . . . . . . . . . . . . . . . . . . 1 . . . . . . . . . . . . . . Botnet 11 | . 1 . 1 . . . 2 . 1 . . . . 1 . . . . 1 . . . . . . 1 . . . . 1 . 2 Fabricators 3 | . . . . . . . . . . . . . . 2 . . . . . . . . . . . 1 . . . . . . . Liberate 1 | . . . . . . . . . . . . . . . . . . . . . . . . . . 1 . . . . . . . Haulers 1 | . . . . . . . . . . . . . . 1 . . . . . . . . . . . . . . . . . . . Recompile 1 | . . . . . . . . . . . . . . 1 . . . . . . . . . . . . . . . . . . . Repair Stations . | . . . . . . . . . . . . . . . . . . . . . . . . . . . . . . . . . . Recycling Units 1 | . 1 . . . . . . . . . . . . . . . . . . . . . . . . . . . . . . . . Tunnel 1 | . 1 . . . . . . . . . . . . . . . . . . . . . . . . . . . . . . . . Scanalyzers 1 | . . . 1 . . . . . . . . . . . . . . . . . . . . . . . . . . . . . . Extract 1 | . . . 1 . . . . . . . . . . . . . . . . . . . . . . . . . . . . . . Garrison Access . | . . . . . . . . . . . . . . . . . . . . . . . . . . . . . . . . . . Data Cores Recovered 3 | . . . 1 . . . 1 . . . . . . . . . . . 1 . . . . . . . . . . . . . . Used . | . . . . . . . . . . . . . . . . . . . . . . . . . . . . . . . . . . Hacking Detections 78 | . 6 1 8 . . . 5 2 12 6 1 1 . 9 . . . . 7 . . . . 4 . 7 . . . . 2 . 7 Full Trace Events 14 | . . . . . . . 1 . 1 2 . . . 4 . . . . 2 . . . . . . 4 . . . . . . . Feedback Events 1 | . . . . . . . . . . 1 . . . . . . . . . . . . . . . . . . . . . . . Hackware Fried 1 | . . . . . . . . . . 1 . . . . . . . . . . . . . . . . . . . . . . . Feedback Blocked . | . . . . . . . . . . . . . . . . . . . . . . . . . . . . . . . . . . Robot Schematics Acquired 7 | . . . . . . . . . 1 . . . . . . . 6 . . . . . . . . . . . . . . . . Robots Built 3 | . . . . . . . . . . 3 . . . . . . . . . . . . . . . . . . . . . . . Authchips . | . . . . . . . . . . . . . . . . . . . . . . . . . . . . . . . . . . Time 67 | . . . . . . . . . . 67 . . . . . . . . . . . . . . . . . . . . . . . Total Robot Build Rating 12 | . . . . . . . . . . 12 . . . . . . . . . . . . . . . . . . . . . . . Part Schematics Acquired 27 | . 2 . 8 . . . . . 4 . . . . . . . 10 . . . . 3 . . . . . . . . . . . Parts Built 11 | . . . . . . . . . . 1 . . . 5 . . . . 4 . . . . . . 1 . . . . . . . Authchips 3 | . . . . . . . . . . . . . . . . . . . 2 . . . . . . 1 . . . . . . . Time 773 | . . . . . . . . . . 106 . . . 162 . . . . 252 . . . . . . 253 . . . . . . . Total Part Build Rating 57 | . . . . . . . . . . 6 . . . 21 . . . . 24 . . . . . . 6 . . . . . . . Parts Repaired 17 | . 2 . 4 . . . 7 . . . . . . . . . . . 2 . . . . 2 . . . . . . . . . Time 744 | . 52 . 153 . . . 318 . . . . . . . . . . . 88 . . . . 133 . . . . . . . . . Parts Recycled . | . . . . . . . . . . . . . . . . . . . . . . . . . . . . . . . . . . Recycled Matter . | . . . . . . . . . . . . . . . . . . . . . . . . . . . . . . . . . . Retrieved Matter . | . . . . . . . . . . . . . . . . . . . . . . . . . . . . . . . . . . Retrieved Components 10 | . . . . . . . . . . . . . . . . . . . . . . . . . . 10 . . . . . . . Parts Scanalyzed 5 | . . . . . . . . . 5 . . . . . . . . . . . . . . . . . . . . . . . . Part Schematics Acquired 4 | . . . . . . . . . 4 . . . . . . . . . . . . . . . . . . . . . . . . Parts Damaged . | . . . . . . . . . . . . . . . . . . . . . . . . . . . . . . . . . . Bothacking | -11 -10 -10 -9 -9 -9 -8 -8 -8 -8 -7 -7 -7 -7 -6 -6 -6 -6 -5 -5 -5 -5 -5 -4 -4 -4 -4 -4 -4 -4 -3 -3 -2 -1 ------------ Run | Yrd Mat Min Mat Min Exi Min Mat Gar Mat Fac Gar Fac DSF Fac Low Low Dat Pro Fac Upp Upp Zhi Pro Fac Was Fac Upp Upp War Pro Res Res Acc Used RIF Installer . | . . . . . . . . . . . . . . . . . . . . . . . . . . . . . . . . . . Robots Hacked 3 | . . . . . . . . . . . . . . . . . . . 1 . . . . . . . . . . . . . 2 Non-combat 1 | . . . . . . . . . . . . . . . . . . . 1 . . . . . . . . . . . . . . Combat . | . . . . . . . . . . . . . . . . . . . . . . . . . . . . . . . . . . Robot Hacks Applied 2 | . . . . . . . . . . . . . . . . . . . 2 . . . . . . . . . . . . . . no_distress 1 | . . . . . . . . . . . . . . . . . . . 1 . . . . . . . . . . . . . . find_fabricator 1 | . . . . . . . . . . . . . . . . . . . 1 . . . . . . . . . . . . . . Manual 2 | . . . . . . . . . . . . . . . . . . . . . . . . . . . . . . . . . 2 Relay Couplers Released 4 | . . . . . . . . . . . 4 . . . . . . . . . . . . . . . . . . . . . . Machine Destruction 4 | . . . . . . . . . . . 4 . . . . . . . . . . . . . . . . . . . . . . Fabnet Peak Effective % . | . . . . . . . . . . . . . . . . . . . . . . . . . . . . . . . . . . Robots Rewired 4 | . . . . . . . . 3 . . . . . 1 . . . . . . . . . . . . . . . . . . . Allies Hacked . | . . . . . . . . . . . . . . . . . . . . . . . . . . . . . . . . . . Hacks Repelled 1 | . . . . . . . . . . . . . . . . . . . . . . . . . . 1 . . . . . . . Allies | -11 -10 -10 -9 -9 -9 -8 -8 -8 -8 -7 -7 -7 -7 -6 -6 -6 -6 -5 -5 -5 -5 -5 -4 -4 -4 -4 -4 -4 -4 -3 -3 -2 -1 -------- Run | Yrd Mat Min Mat Min Exi Min Mat Gar Mat Fac Gar Fac DSF Fac Low Low Dat Pro Fac Upp Upp Zhi Pro Fac Was Fac Upp Upp War Pro Res Res Acc Total Allies 16 | . . 3 . 1 . . . 3 . 3 . . . 1 . . . . . . . . . . . 3 . . . . . . 2 Largest Group 3 | . . 3 3 1 . . . 1 3 3 . . . 1 . . . . . . . . . . . 3 . . . . . . 1 Highest-Rated Group 219 | . . 40 40 31 . . . 5 15 60 . . . 12 . . . . . . . . . . . 141 . . . . . . 219 Highest-Rated Ally 219 | . . 16 16 31 . . . 5 5 20 . . . 12 . . . . . . . . . . . 47 . . . . . . 219 Total Orders 41 | . . . . . . . . . . . . . . . . . . . . 1 2 1 9 11 8 9 . . . . . . . STAY 1 | . . . . . . . . . . . . . . . . . . . . . . . . 1 . . . . . . . . . RETURN 40 | . . . . . . . . . . . . . . . . . . . . 1 2 1 9 10 8 9 . . . . . . . Ally Attacks 718 | . . 2 22 3 . . . . 10 11 . . . 15 . . . . 12 13 50 . 100 154 124 169 . . . . . . 33 Total Damage 16684 | . . 27 246 40 . . . . 57 195 . . . 488 . . . . 763 218 731 . 1631 3201 2585 3686 . . . . . . 2816 Kills 100 | . . 1 3 . . . . . 1 1 . . . 3 . . . . 6 4 11 . 10 18 5 25 . . . . . . 12 Allies Corrupted 1 | . . . . . . . . . . . . . . . . . . . . . . . . . . 1 . . . . . . . Allies Melted 2 | . . . . . . . . . . . . . . . . . . . . . . . 1 . . 1 . . . . . . . Turrets Deployed 3 | . . . . . . . . . . . . . . 1 . . . . 1 . . . . 1 . . . . . . . . . Intel | -11 -10 -10 -9 -9 -9 -8 -8 -8 -8 -7 -7 -7 -7 -6 -6 -6 -6 -5 -5 -5 -5 -5 -4 -4 -4 -4 -4 -4 -4 -3 -3 -2 -1 ------- Run | Yrd Mat Min Mat Min Exi Min Mat Gar Mat Fac Gar Fac DSF Fac Low Low Dat Pro Fac Upp Upp Zhi Pro Fac Was Fac Upp Upp War Pro Res Res Acc Robot Analysis Total 11 | . 2 . 1 . . . 2 . 2 . . . . . . . . . . . . 4 . . . . . . . . . . . Derelict Logs Recovered 11 | . . 1 . 1 . . . . . . . . . . 1 1 . 3 . 1 1 . . . . . 1 1 . . . . . Drone Launches 70 | . . . . . . . . . . . . . . . . . . . . 8 5 4 8 16 13 16 . . . . . . . Drone Recoveries 60 | . . . . . . . . . . . . . . . . . . . . 4 5 3 9 16 12 11 . . . . . . . Exploration | -11 -10 -10 -9 -9 -9 -8 -8 -8 -8 -7 -7 -7 -7 -6 -6 -6 -6 -5 -5 -5 -5 -5 -4 -4 -4 -4 -4 -4 -4 -3 -3 -2 -1 ------------- Run | Yrd Mat Min Mat Min Exi Min Mat Gar Mat Fac Gar Fac DSF Fac Low Low Dat Pro Fac Upp Upp Zhi Pro Fac Was Fac Upp Upp War Pro Res Res Acc Turns Passed 31428 | 41 933 574 1906 993 377 659 1626 919 2537 1513 1029 247 371 1818 818 750 114 608 2226 483 512 296 922 1544 291 2734 725 373 964 590 502 288 1145 Spaces Moved 16751 | 40 680 511 1100 540 310 494 652 475 1170 737 517 81 157 1029 469 458 77 355 1062 286 316 171 353 770 132 1307 432 257 483 309 282 163 576 Core 6 | 6 . . . . . . . . . . . . . . . . . . . . . . . . . . . . . . . . . Treads . | . . . . . . . . . . . . . . . . . . . . . . . . . . . . . . . . . . Legs . | . . . . . . . . . . . . . . . . . . . . . . . . . . . . . . . . . . Wheels 16745 | 34 680 511 1100 540 310 494 652 475 1170 737 517 81 157 1029 469 458 77 355 1062 286 316 171 353 770 132 1307 432 257 483 309 282 163 576 Hover . | . . . . . . . . . . . . . . . . . . . . . . . . . . . . . . . . . . Flight . | . . . . . . . . . . . . . . . . . . . . . . . . . . . . . . . . . . Fastest Speed 50 | 50 80 95 95 120 120 120 120 150 145 145 130 145 145 120 150 150 150 150 135 145 160 160 175 145 145 144 130 135 135 158 153 150 150 Average Speed 142 | 75 94 95 109 120 120 120 139 150 154 159 155 150 152 135 150 150 150 153 145 159 160 160 175 154 159 155 145 135 143 177 156 150 159 Slowest Speed 350 | 80 110 95 120 120 120 120 150 150 165 160 160 160 160 175 165 150 150 190 205 160 160 175 175 220 160 350 147 135 158 183 176 153 170 Overloaded Moves . | . . . . . . . . . . . . . . . . . . . . . . . . . . . . . . . . . . Propulsion Burnouts . | . . . . . . . . . . . . . . . . . . . . . . . . . . . . . . . . . . Robots Hopped 1 | . . . . . . . . . . . . . . . . . . . . . . . . 1 . . . . . . . . . Cave-ins Triggered . | . . . . . . . . . . . . . . . . . . . . . . . . . . . . . . . . . . Exploration Rate (%) 54 | 3 95 97 96 98 70 87 57 59 80 20 69 2 89 33 65 56 68 59 20 49 67 62 61 18 89 30 68 48 55 55 11 9 19 Regions Visited 33 Branch Regions 16 Pre-discovered Areas 11 | . 1 . . . 1 . . . . . . . . . 1 . 1 2 . . 1 3 . . . . . 1 . . . . . Known Exits Taken 8 | . . . . . . . 1 . . 1 . 1 . 1 . . . . 1 . . . 1 . . 1 . . . . . 1 . Unknown Exits Taken 20 | 1 1 1 1 1 1 1 . . 1 . . . . . 1 1 1 1 . 1 1 1 . . . . 1 1 1 1 1 . . Scrap Searched 23 | . . 2 . 1 . 1 . . . . . . . . . 2 . 3 . 3 4 . 1 . . . 3 2 . 1 . . . Spaces Dug 104 | . . . . . . . 4 . 1 5 . 1 2 6 6 4 . 1 6 1 . . 5 5 . 26 1 . 5 2 2 3 18 Terrain Destroyed 670 | . . . 14 . . 23 4 12 3 36 57 1 22 45 12 5 . 5 25 2 1 . 10 34 1 210 3 6 5 54 29 3 48 Melee 56 | . . . . . . . 4 . 1 5 . 1 . 4 . 4 . 1 3 1 . . 3 5 . 22 . . 2 . . . . Projectile 188 | . . . . . . . . . . . . . . 9 11 1 . 4 22 1 1 . 7 28 1 21 3 6 3 7 12 3 48 AOE 425 | . . . 14 . . 23 . 12 2 31 57 . 22 32 1 . . . . . . . . . . 167 . . . 47 17 . . Terrain Rammed . | . . . . . . . . . . . . . . . . . . . . . . . . . . . . . . . . . . Walls Destroyed . | . . . . . . . . . . . . . . . . . . . . . . . . . . . . . . . . . . Machines Disabled . | . . . . . . . . . . . . . . . . . . . . . . . . . . . . . . . . . . Actions | -11 -10 -10 -9 -9 -9 -8 -8 -8 -8 -7 -7 -7 -7 -6 -6 -6 -6 -5 -5 -5 -5 -5 -4 -4 -4 -4 -4 -4 -4 -3 -3 -2 -1 --------- Run | Yrd Mat Min Mat Min Exi Min Mat Gar Mat Fac Gar Fac DSF Fac Low Low Dat Pro Fac Upp Upp Zhi Pro Fac Was Fac Upp Upp War Pro Res Res Acc Total 22283 | 47 842 556 1542 862 317 525 1219 611 1721 964 659 203 260 1303 532 487 76 387 1556 311 323 199 645 989 176 1727 530 285 749 345 341 202 792 Wait 3062 | . 65 16 231 305 . 11 447 29 422 103 25 119 43 121 17 1 . 5 302 7 4 3 276 102 1 89 23 7 185 . 9 22 72 Move 16716 | 39 679 510 1099 539 309 493 652 474 1169 737 514 80 156 1028 468 457 76 354 1061 285 315 170 352 768 131 1306 431 256 482 308 281 162 575 Hop 1 | . . . . . . . . . . . . . . . . . . . . . . . . 1 . . . . . . . . . Pick Up 212 | 2 13 3 21 3 3 1 14 5 7 8 5 . 8 13 4 2 . 2 21 4 2 7 2 7 4 21 9 3 9 1 4 . 4 Fast Attach 102 | 6 6 . 11 . . . 7 1 4 8 3 . 3 6 . . . . 6 . . 3 2 8 3 12 1 . 7 2 1 . 2 Attach 130 | . 1 . 6 2 . 1 4 . 2 8 3 . 1 7 3 2 . 2 13 4 . 3 . 5 . 37 9 . 3 3 5 1 5 Detach 56 | . 3 . 1 . . . . . 1 5 . . 1 2 . 1 . . 3 2 . 3 . 2 4 18 2 . 3 1 3 . 1 Swap 182 | . 4 2 14 2 1 2 10 16 8 11 10 3 4 14 4 3 . 7 17 3 . 1 . 7 3 14 1 . 5 2 2 6 6 Drop 185 | . 5 3 23 . 4 . 10 9 14 6 4 . 7 12 2 1 . 1 21 3 1 8 2 8 7 5 . 4 18 3 2 . 2 Fire 1377 | . 66 22 136 11 . 17 71 36 91 57 34 . 13 83 34 8 . 14 107 . . . 8 70 20 190 53 11 30 25 34 11 125 Melee 141 | . . . . . . . 4 16 2 19 21 1 8 6 . 12 . 1 5 1 . . 3 8 . 27 . . 7 . . . . Ram 2 | . . . . . . . . . 1 . . . . . . . . . . . . . . . . 1 . . . . . . . Kick . | . . . . . . . . . . . . . . . . . . . . . . . . . . . . . . . . . . Crush . | . . . . . . . . . . . . . . . . . . . . . . . . . . . . . . . . . . Escape Stasis 64 | . . . . . . . . . . . 40 . 16 8 . . . . . . . . . . . . . . . . . . . Rewire 28 | . . . . . . . . 25 . . . . . 3 . . . . . . . . . . . . . . . . . . . Trap 11 | . . . . . . . . . . 2 . . . . . . . 1 . . . . . . . 3 1 4 . . . . . Miscellaneous 14 | . . . . . . . . . . . . . . . . . . . . 2 1 1 . 3 3 4 . . . . . . . Route ------- -11/Scrapyard -10/Materials (discovered 5 exits: *Mat x3 / *Min x2) -10/Mines (discovered 3 exits: *Mat x2 / [*Sub]) -9/Materials (discovered 5 exits: *Mat x3 / [*Min x2]) -9/Mines (discovered 4 exits: *Mat x2 / *Exi / [*Zio]) -9/Exiles -8/Mines (discovered 2 exits: *Mat x2) -8/Materials (discovered 2 exits: *Fac / Gar) -8/Garrison (discovered 2 exits: *Mat x2) -8/Materials (discovered 2 exits: *Fac x2) -7/Factory (discovered 4 exits: *Fac / [*Low x2] / Gar) -7/Garrison (discovered 3 exits: *Fac x3) -7/Factory -7/DSF -6/Factory (discovered 5 exits: *Fac / *Low x2 / Ext x2) -6/Lower Caves -6/Lower Caves -6/Data Miner -5/Proximity Caves -5/Factory (discovered 3 exits: Fac / *Upp x2) -5/Upper Caves -5/Upper Caves (discovered 2 exits: *Fac / *Zhi) -5/Zhirov -4/Proximity Caves -4/Factory (discovered 3 exits: Upp x2 / Arm) -4/Waste -4/Factory (discovered 2 exits: *Res / *Upp) -4/Upper Caves -4/Upper Caves -4/Warlord -3/Proximity Caves -3/Research (discovered 3 exits: [*Res] / Qua x2) -2/Research -1/Access (discovered 2 exits: [*Sur] / Com) To Epsilon Eridani History --------- Turn | Location | Event 28 | -11/Scrapyard | Discovered new exit (range 15) 42 | -11/Scrapyard | Entered Materials 164 | -10/Materials | Discovered new exit (range 9) 313 | -10/Materials | Build established: Mutant 401 | -10/Materials | Core integrity fell below 50% 445 | -10/Materials | Discovered new exit (range 10) 493 | -10/Materials | Central database locked down 662 | -10/Materials | Discovered new exit (range 10) 670 | -10/Materials | Discovered new exit (range 16) 734 | -10/Materials | Discovered new exit (range 16) 836 | -10/Materials | Repaired Seismic Detector 863 | -10/Materials | Repaired Wheel 975 | -10/Materials | Entered Mines 1045 | -10/Mines | Discovered new exit (range 9) 1190 | -10/Mines | Learned Materials security intel 1358 | -10/Mines | Discovered new exit (range 11) 1385 | -10/Mines | Assisted by bots powering up and referring to "LRC-V3" 1441 | -10/Mines | Received a Rocket Launcher from a helpful Derelict 1503 | -10/Mines | Discovered new exit (range 12) 1549 | -10/Mines | Entered Materials 1549 | -9/Materials | Accompanied by 3 allies 1549 | -9/Materials | Evolved 2 slots: Utility x2 1707 | -9/Materials | Discovered new exit (range 15) 1757 | -9/Materials | Central database locked down 1996 | -9/Materials | Build established: Scavenger-Mutant 2781 | -9/Materials | Discovered new exit (range 10) 2912 | -9/Materials | Repaired Imp. Assault Rifle 2951 | -9/Materials | Repaired Deuterium Engine 2991 | -9/Materials | Repaired Shield Generator 3025 | -9/Materials | Repaired Arm. Wheel 3126 | -9/Materials | Discovered new exit (range 15) 3149 | -9/Materials | Build established: Mutant 3155 | -9/Materials | Discovered new exit (range 8) 3361 | -9/Materials | Discovered new exit (range 16) 3455 | -9/Materials | Entered Mines 3464 | -9/Mines | Met a Derelict bent on vengeance 3501 | -9/Mines | Assembled infested the area 3713 | -9/Mines | Core integrity fell below 50% 3929 | -9/Mines | A Derelict revealed a hidden shortcut to a safe place 3945 | -9/Mines | Deemed a non-threat by the Exiles lab entrance 3946 | -9/Mines | Discovered new exit (range 5) 4043 | -9/Mines | Discovered new exit (range 7) 4050 | -9/Mines | Received a Mining Laser from a helpful Derelict 4162 | -9/Mines | Found a damaged Exp. Sensor Array with a note attached 4165 | -9/Mines | Found Prototype Device 4237 | -9/Mines | Identified Exp. Sensor Array 4266 | -9/Mines | A weapon hastily lodged in a ceiling crevice suddenly fell to the ground 4292 | -9/Mines | Learned 2 Materials zone layouts 4293 | -9/Mines | Discovered new exit (range 9) 4448 | -9/Mines | Entered Exiles 4478 | -9/Exiles | Met 8R-AWN 4498 | -9/Exiles | Met EX-HEX 4542 | -9/Exiles | Met EX-DEC 4564 | -9/Exiles | Learned location of Zion (-7) 4585 | -9/Exiles | Met EX-BIN 4603 | -9/Exiles | Aligned with FarCom system 4604 | -9/Exiles | Given EX-Vault access code 4633 | -9/Exiles | Opened EX-Vault 4641 | -9/Exiles | Found Deploy-a-Sentry 4644 | -9/Exiles | Found Deploy-a-Sentry 4646 | -9/Exiles | Found Deploy-a-Sentry 4671 | -9/Exiles | Warned to stay clear of 0b10 Research branches 4816 | -9/Exiles | Discovered new exit (range 10) 4825 | -9/Exiles | Left Exiles lab with Deploy-a-Sentry 4825 | -9/Exiles | Entered Mines 5089 | -8/Mines | Discovered new exit (range 5) 5111 | -8/Mines | Discovered new exit (range 8) 5484 | -8/Mines | Entered Materials 5484 | -8/Materials | Evolved 2 slots: Utility x2 6599 | -8/Materials | Repaired Imp. Medium Armor Plating 6632 | -8/Materials | Repaired Arm. Wheel 6666 | -8/Materials | Repaired Cooling System 6719 | -8/Materials | Repaired Arm. Wheel 6828 | -8/Materials | Repaired Exp. Sensor Array 6861 | -8/Materials | Repaired Hvy. Assault Rifle 6901 | -8/Materials | Repaired Lgt. Deuterium Engine 6913 | -8/Materials | Discovered new exit (range 9) 6929 | -8/Materials | Garrison activated, responded to threat 7110 | -8/Materials | Identified exit to Garrison 7110 | -8/Materials | Entered Garrison 7250 | -8/Garrison | Triggered checkpoint 7276 | -8/Garrison | Discovered new exit (range 6) 7383 | -8/Garrison | Destroyed 7 combat bots 7431 | -8/Garrison | Triggered checkpoint 7456 | -8/Garrison | Triggered checkpoint 7548 | -8/Garrison | Discovered new exit (range 10) 7566 | -8/Garrison | Learned Materials security intel 8029 | -8/Garrison | Entered Materials 8029 | -8/Materials | Accompanied by 3 allies 8242 | -8/Materials | Lost 3 allies 9468 | -8/Materials | Discovered new exit (range 4) 9708 | -8/Materials | Discovered new exit (range 15) 10566 | -8/Materials | Entered Factory 10566 | -7/Factory | Evolved 2 slots: Power x1, Utility x1 10681 | -7/Factory | Discovered new exit (range 15) 10812 | -7/Factory | Fabricated B-48 Gladiator (x3) 10854 | -7/Factory | Discovered new exit (range 6) 10974 | -7/Factory | Destroyed 9 combat bots 11153 | -7/Factory | Fabricated Adv. System Shield? 11227 | -7/Factory | Discovered new exit (range 15) 11475 | -7/Factory | Lost 4 parts (1p2u1w) 11630 | -7/Factory | Hacking Suite fried by hacking feedback 11926 | -7/Factory | Cargo convoy interrupted 11978 | -7/Factory | Found Prototype Launcher 11978 | -7/Factory | Identified Com. Tesla Bomb Launcher 12079 | -7/Factory | Identified exit to Garrison 12079 | -7/Factory | Entered Garrison 12148 | -7/Garrison | Triggered checkpoint 12481 | -7/Garrison | Triggered checkpoint 12531 | -7/Garrison | Discovered new exit (range 10) 12559 | -7/Garrison | Build established: Scavenger-Mutant 12661 | -7/Garrison | Attempted to access garrison exit controls, blocked by remote lockdown 12704 | -7/Garrison | Triggered checkpoint 12853 | -7/Garrison | Discovered new exit (range 10) 12873 | -7/Garrison | Attempted to access garrison exit controls, blocked by remote lockdown 12896 | -7/Garrison | Build established: Mutant 12971 | -7/Garrison | Triggered checkpoint 13041 | -7/Garrison | Discovered new exit (range 14) 13108 | -7/Garrison | Entered Factory 13353 | -7/Factory | Identified exit to DSF 13355 | -7/Factory | Entered DSF 13398 | -7/DSF | Additional patrols routed to DSF 13618 | -7/DSF | Sterilization system engaged 13638 | -7/DSF | Ambient heat levels rising (+10) 13647 | -7/DSF | Destroyed 9 combat bots 13653 | -7/DSF | Ambient heat levels rising (+10) 13668 | -7/DSF | Ambient heat levels rising (+10) 13683 | -7/DSF | Ambient heat levels rising (+10) 13689 | -7/DSF | Discovered new exit (range 15) 13698 | -7/DSF | Ambient heat levels rising (+10) 13713 | -7/DSF | Ambient heat levels rising (+10) 13726 | -7/DSF | Entered Factory 13726 | -6/Factory | Evolved 2 slots: Propulsion x1, Utility x1 13951 | -6/Factory | Build established: Scavenger-Mutant 14297 | -6/Factory | Build established: Mutant 14426 | -6/Factory | Fabricated Arm. Huge Wheel? 14436 | -6/Factory | Fabricated Adv. Plasma Cannon (x2) 14771 | -6/Factory | DAS Turret deployed 14884 | -6/Factory | Fabricated Cargo Storage Unit? 14951 | -6/Factory | Discovered new exit (range 16) 15126 | -6/Factory | First assault squad dispatched 15173 | -6/Factory | Lost 4 parts (2p2u) 15208 | -6/Factory | Garrison activated, responded to threat 15224 | -6/Factory | Build established: Hauler-Mutant 15518 | -6/Factory | Identified exit to Lower Caves 15518 | -6/Factory | Identified exit to Extension 15544 | -6/Factory | Entered Lower Caves 15614 | -6/Lower Caves | Met a Warlord Commander 15615 | -6/Lower Caves | Learned location of Warlord (-4) 15616 | -6/Lower Caves | Warlord Commander delivered Encrypted Comm Array 15634 | -6/Lower Caves | Learned location of 1 exit from Factory 15849 | -6/Lower Caves | Spotted B-75 Beast 16341 | -6/Lower Caves | Discovered new exit (range 15) 16362 | -6/Lower Caves | Entered another Lower Caves area 16656 | -6/Lower Caves | Learned Factory terminal intel 16795 | -6/Lower Caves | Attracted the attention of an 0b10 checkpoint 16858 | -6/Lower Caves | Discovered new exit (range 9) 17112 | -6/Lower Caves | Entered Data Miner 17112 | -6/Data Miner | Discovered new exit (range 6) 17141 | -6/Data Miner | Met Data Miner 17168 | -6/Data Miner | Learned location of Section 7 (-2) 17168 | -6/Data Miner | Acquired the access code to Warlord's prototype stash 17192 | -6/Data Miner | Received God Mode back door access code from Data Miner 17226 | -6/Data Miner | Entered Proximity Caves 17548 | -5/Proximity Caves | Attracted the attention of an 0b10 checkpoint 17796 | -5/Proximity Caves | Learned Factory trap positions 17823 | -5/Proximity Caves | Discovered new exit (range 4) 17834 | -5/Proximity Caves | Entered Factory 17834 | -5/Factory | Evolved 2 slots: Utility x2 17835 | -5/Factory | Identified exit to Factory 17836 | -5/Factory | Loaded intel: 110 trap records 17837 | -5/Factory | Loaded intel: 26 terminal locations 18308 | -5/Factory | Identified exit to Upper Caves 18614 | -5/Factory | Fabricated Combat Drone Bay? 18626 | -5/Factory | Repaired Arm. Huge Wheel 18671 | -5/Factory | Repaired Arm. Huge Wheel? 18712 | -5/Factory | Fabricated Combat Drone Bay? 18889 | -5/Factory | DAS Turret deployed 18904 | -5/Factory | Fabricated Combat Drone Bay? 18919 | -5/Factory | System corruption reached 10% 19862 | -5/Factory | Garrison activated, responded to threat 19882 | -5/Factory | Fabricated Combat Drone Bay? 20060 | -5/Factory | Entered Upper Caves 20185 | -5/Upper Caves | Learned Factory terminal intel 20479 | -5/Upper Caves | Discovered new exit (range 17) 20493 | -5/Upper Caves | Found Alien Artifact 20512 | -5/Upper Caves | Identified Core Expander 20512 | -5/Upper Caves | Installed Core Expander, added new Power slot 20543 | -5/Upper Caves | Entered another Upper Caves area 20543 | -5/Upper Caves | Accompanied by 4 allies 20598 | -5/Upper Caves | Discovered exit to Factory (range 11) 21009 | -5/Upper Caves | Discovered new exit (range 8) 21037 | -5/Upper Caves | Learned location of Armory (-4) 21055 | -5/Upper Caves | Entered Zhirov 21055 | -5/Zhirov | Accompanied by 3 allies 21056 | -5/Zhirov | Discovered new exit (range 4) 21085 | -5/Zhirov | Met Zhirov 21123 | -5/Zhirov | Learned location of Quarantine (-3) 21123 | -5/Zhirov | Learned location of Testing (-2) 21123 | -5/Zhirov | Learned location of Command (-1) 21145 | -5/Zhirov | Zhirov requested help retrieving the SGEMP Prototype 21170 | -5/Zhirov | Found Alien Artifact 21170 | -5/Zhirov | Identified Integrated Dissipator 21170 | -5/Zhirov | Installed Integrated Dissipator, increased core heat dissipation (+20) 21192 | -5/Zhirov | Found Alien Artifact 21351 | -5/Zhirov | Entered Proximity Caves 21351 | -4/Proximity Caves | Accompanied by 4 allies 21600 | -4/Proximity Caves | Spotter reported a threat 21697 | -4/Proximity Caves | Spotted B-86 Titan 21715 | -4/Proximity Caves | Allies destroyed B-86 Titan 21743 | -4/Proximity Caves | Lost 3 allies 21965 | -4/Proximity Caves | Discovered exit to Factory (range 14) 22113 | -4/Proximity Caves | Received a Behemoth hack from an annoying Tinkerer 22273 | -4/Proximity Caves | Entered Factory 22273 | -4/Factory | Evolved 2 slots: Propulsion x1, Utility x1 22274 | -4/Factory | Loaded intel: 26 terminal locations 22376 | -4/Factory | Identified exit to Upper Caves 22376 | -4/Factory | Identified exit to Armory 22604 | -4/Factory | Build established: Hacker-Mutant 22809 | -4/Factory | DAS Turret deployed 23208 | -4/Factory | Garrison activated, responded to threat 23413 | -4/Factory | Repaired Arm. Huge Wheel 23512 | -4/Factory | Repaired Imp. KE Penetrator 23605 | -4/Factory | System corruption reached 10% 23817 | -4/Factory | Sucked down chute 23817 | -4/Factory | Entered Waste 23832 | -4/Waste | EMP discharged 23835 | -4/Waste | Spotted C-40 Crusher 23841 | -4/Waste | Spotted C-40 Crusher 23842 | -4/Waste | Destroyed C-40 Crusher 23853 | -4/Waste | Allies destroyed C-40 Crusher 23857 | -4/Waste | Found Unknown Protection 23857 | -4/Waste | Identified Damper Plating 23870 | -4/Waste | Spotted C-40 Crusher 23883 | -4/Waste | Allies destroyed C-40 Crusher 23900 | -4/Waste | Spotted C-40 Crusher 23909 | -4/Waste | Allies destroyed C-40 Crusher 23929 | -4/Waste | Spotted C-40 Crusher 23932 | -4/Waste | EMP discharged 23952 | -4/Waste | Allies destroyed C-40 Crusher 23963 | -4/Waste | Spotted C-40 Crusher 23984 | -4/Waste | Allies destroyed C-40 Crusher 23993 | -4/Waste | Found Damper Plating 24032 | -4/Waste | EMP discharged 24034 | -4/Waste | Discovered new exit (range 16) 24108 | -4/Waste | Entered Factory 24140 | -4/Factory | Discovered exit to Upper Caves (range 5) 24175 | -4/Factory | Garrison activated, responded to threat 25165 | -4/Factory | Lost 5 parts (1p1n2u1w) 25774 | -4/Factory | Fabricated Combat Drone Bay? 25783 | -4/Factory | Garrison activated, responded to threat 25844 | -4/Factory | Lost 3 allies 25858 | -4/Factory | First assault squad dispatched 26013 | -4/Factory | Discovered new exit (range 22) 26023 | -4/Factory | Spotted B-86 Titan 26025 | -4/Factory | Destroyed 10 combat bots 26041 | -4/Factory | Destroyed B-86 Titan 26093 | -4/Factory | Lost 6 parts (2p3n1u) 26357 | -4/Factory | Found Quantum Capacitor 26377 | -4/Factory | Build established: Hauler-Mutant 26452 | -4/Factory | Found Quantum Capacitor 26653 | -4/Factory | Lost 3 parts (1n1u1w) 26842 | -4/Factory | Entered Upper Caves 26868 | -4/Upper Caves | Learned Research stockpile data 26882 | -4/Upper Caves | Lost 3 parts (1p2n) 27154 | -4/Upper Caves | Build established: Scavenger-Mutant 27459 | -4/Upper Caves | Attracted the attention of an 0b10 checkpoint 27551 | -4/Upper Caves | Discovered new exit (range 13) 27567 | -4/Upper Caves | Entered another Upper Caves area 27653 | -4/Upper Caves | Build established: Hauler-Mutant 27908 | -4/Upper Caves | Discovered new exit (range 10) 27940 | -4/Upper Caves | Entered Warlord 27998 | -4/Warlord | System corruption cleaned by Quarantine Array 28289 | -4/Warlord | Met Warlord 28302 | -4/Warlord | Opened Warlord's prototype stash 28311 | -4/Warlord | Found Prototype Reactor 28311 | -4/Warlord | Identified Vortex Chain Reactor 28314 | -4/Warlord | Warlord's base attacked by MAIN.C 28318 | -4/Warlord | Found Prototype Device 28318 | -4/Warlord | Identified Exp. Cloaking Device 28332 | -4/Warlord | Found Prototype Hackware 28664 | -4/Warlord | Warlord forces counterattacked 28670 | -4/Warlord | Spotted Striker 28727 | -4/Warlord | Spotted Striker 28750 | -4/Warlord | Spotted B-90 Cyclops 28767 | -4/Warlord | Spotted Executioner 28774 | -4/Warlord | Destroyed Executioner 28786 | -4/Warlord | Spotted Striker 28795 | -4/Warlord | Destroyed Striker 28807 | -4/Warlord | Lost 6 allies 28862 | -4/Warlord | Spotted Executioner 28888 | -4/Warlord | Discovered new exit (range 12) 28902 | -4/Warlord | Lost 10 allies 28904 | -4/Warlord | Entered Proximity Caves 28906 | -3/Proximity Caves | Attracted the attention of an 0b10 checkpoint 29480 | -3/Proximity Caves | Discovered new exit (range 4) 29494 | -3/Proximity Caves | Entered Research 29494 | -3/Research | Evolved 2 slots: Utility x2 29956 | -3/Research | Discovered new exit (range 14) 29959 | -3/Research | Identified exit to Quarantine 29996 | -3/Research | Entered another Research area 29996 | -2/Research | Warlord forces began assault on 0b10 29996 | -2/Research | Evolved 2 slots: Utility x2 30021 | -2/Research | Distinguished unit "Viscera Detail" dispatched to help 30030 | -2/Research | Build established: Hauler-Skirmisher 30106 | -2/Research | Research machine network offline 30160 | -2/Research | Met up with Warlord 30231 | -2/Research | Discovered new exit (range 16) 30254 | -2/Research | Identified exit to Access 30284 | -2/Research | Entered Access 30284 | -1/Access | Evolved 2 slots: Utility x2 30284 | -1/Access | Identified Ghost Barrier 30301 | -1/Access | Identified exit to Command 30388 | -1/Access | Lost 3 allies 30400 | -1/Access | Spotted B-99 Colossus 30403 | -1/Access | Befriended a Behemoth using the annoying Tinkerer's hack 30764 | -1/Access | Build established: Hacker-Mutant 31132 | -1/Access | Build established: Hacker-Skirmisher 31160 | -1/Access | Spotted B-99 Colossus 31162 | -1/Access | Befriended a Behemoth using the annoying Tinkerer's hack 31416 | -1/Access | Discovered new exit (range 10) 31429 | *** | Escaped! Last Messages --------------- 31260_ W-44 Eye knocked back. 31260_ W-44 Eye destroyed. 31269_ System corrupted: Matter fused (-5). 31279_ R-10 Processor collects Adv. Sensor Array. 31284_ ALERT: Rogue bot located, Programmers report to Access Zone 8C. 31290_ 3C N/ T1SNZK=Z&U3ZI0W5Z8M,GD6< 31290_ U-05 Engineer builds a Wall. 31314_ System corrupted: Energy discharge (-269). 31347_ System corrupted: Matter fused (-10). 31363_ W-44 Eye distress signal jammed. 31363_ P-80 Master destroyed. 31364_ W-44 Eye distress signal jammed. 31364_ U-05 Engineer builds a Wall. 31402_ Z :N&EF4,KISM5CBP6Y0FMBSPZU47GM 31416_ EXIT=FOUND 31416_ Connecting with Terminal... >>Open(Door) Sealed Barrier opened. 31421_ The Access Shell folds into the floor. [Achievement: Mad Max] Map ----- +----------------------------------------------------+ | ????????????????#??#?#### ??? ?? ??? # ?? +??? ? | | ??????????????"? ????#?##????? ? ?? # ?? ?? ???? | | ??????????????"????######? ? ?? ?? ? # ?# | | ????????????"??????##?### ??? ? ????#?##### ?# ? | | ??????????? ????? ####### ? ? # ? ? | | ????????????? ??? #?#?### ? ? ?? ? ? ?? | | ??????????? ???? #####?? ?? ? #?? ? # | | ???????????? ? ?? ##?####? ? ?? ?? | | ?????????????? ?######? ?? ? # ?? | | ??????????? ?? ???###########?#######? # | | ???????????##?#+###################### # | | ?????????? # | | ????????? ?? k ### | | ???????????#? ?#?#?## ""##"####/#####?# ?## | | ????????????????###?# ""### #### ### | | ???????????# ###?### ""#?# #??# ### | | ??????????## ?###?### T### #?## | | ?????? ???#? ???##### ""### ####? | | ????????#??# ??##?## ""###* + | | ??????? ???# ?#?##### ""### " ## | | ?????? ?#?? ?? #???# ## """ ## | | ???????????? ???##### ### """ ## | | ??????????? ??#?#### ### " ## """ | | ????????????????###?# ############# ""F | | ?????????????#####?## #### # "" | | ??????????????#?##?## @" #### # """ | | ?????????#???????#?## "" #### | # """ | | ??????????????##??#?# #### [[=!# | | ????????#???????##### ##########/## | | ???????????? ???#??## #?##### %*! | | ?????????????????##?#""""""""""####### ######## | | ???????##?#???????###?"""?""""?####### #? | | ???????????? ?????#?#""?"""""""####### # | | ???????????? #????#?#?"""""""?"####### # "" | | ?????????????? ????? ??? ? ####### # "" | | ??????????????? ???#? BB BB ####### # """" | | ??????????????? ????# BB? ??BB #??#### # """" | | ???????????????????????? ??#?##### # """" | | ??????????????????????? ? ? ##?#### # """" | | ????????????????????#?? ####### # """" | | ????????????????????# ?? ? ####### # ?" | | ??????????????????#???#? #?######?# # | | ???????????????????????#?? ?#?#####?## # ? | | ?????????????????????? ?? ########## ###+#### | | ????????????????????????? | | ???????????????????????? | | ?????????????????????? # | | ???????????????????????? | | ??????????????????????????##### ###+########### | | ???????????????????????#?#???## # ? #?## | +----------------------------------------------------+ Best States ------------- Heat Dissipation 113 Coolant Potential 120 Energy Generation 90 Energy Capacity 770 Matter Stores 300 Matter Capacity 300 Sight Range 16 Robot Scan Range 20 Terrain Scan Range 20 Terrain Scan Density 210 Jamming Range 16 Cloak Strength 4 Power Amplification 30 Additional Mass Support 12 EM Shielding 4 Armor Coverage 1600 Resistance: KI 30 Resistance: EM 90 Core Shielding 20 Utility Shielding 66 Weapon Shielding 90 Evasion (%) 44 Targeting Accuracy 8 Recoil Reduction 6 Offensive Hacking 34 Defensive Hacking 34 Authchip Count 3 Trap Extractor Capacity 6 Item Schematics ----------------- Cargo Storage Unit | -10/Materials | Hacked Huge Storage Unit | -10/Materials | Hacked Imp. Ion Engine | -9/Materials | Extracted EM Shotgun | -9/Materials | Extracted Lgt. EM Pulse Cannon | -9/Materials | Extracted Hvy. Assault Rifle | -9/Materials | Extracted Sml. Matter Pod | -9/Materials | Extracted Hvy. EM Pulse Gun | -9/Materials | Extracted Shield Generator | -9/Materials | Extracted Shotgun | -9/Materials | Extracted Imp. Weapon Shielding | -8/Materials | Scanalyzed Arm. Huge Wheel | -8/Materials | Scanalyzed Hvy. Armor Plating | -8/Materials | Scanalyzed Reactive Plating | -8/Materials | Scanalyzed Combat Drone Bay | -6/Data Miner | Free Lgt. Regenerative Plating | -6/Data Miner | Free Enh. Flexi-carbon Leg | -6/Data Miner | Free Exp. Heat Sink | -6/Data Miner | Free Cld. Plasma Rifle | -6/Data Miner | Free Adv. VSS Leg | -6/Data Miner | Free Adv. Target Analyzer | -6/Data Miner | Free Hardcell Cannon | -6/Data Miner | Free Field Propulsion Array | -6/Data Miner | Free Enh. Force Lance | -6/Data Miner | Free Assault Drone Bay | -5/Zhirov | Free Exp. Optical Array | -5/Zhirov | Free Imp. Arc Thrower | -5/Zhirov | Free Robot Schematics ------------------ M-13 Machinist | -8/Materials | Hacked A-15 Conveyor | -6/Data Miner | Free Y-64 Sentinel | -6/Data Miner | Free E-15 Imp | -6/Data Miner | Free H-66 Slayer | -6/Data Miner | Free A-27 Freighter | -6/Data Miner | Free B-60 Warrior | -6/Data Miner | Free Fabricated ------------ B-48 Gladiator | x3 | -7/Factory | Preloaded Adv. System Shield | x1 | -7/Factory | Preloaded Arm. Huge Wheel | x2 | -6/Factory Adv. Plasma Cannon | x2 | -6/Factory | Preloaded Cargo Storage Unit | x1 | -6/Factory Combat Drone Bay | x1 | -5/Factory | Authchip Combat Drone Bay | x1 | -5/Factory | Authchip Combat Drone Bay | x1 | -5/Factory Combat Drone Bay | x1 | -5/Factory Combat Drone Bay | x1 | -4/Factory | Authchip Alien Tech Used ----------------- Core Expander Integrated Dissipator Achievements -------------- Mad Max Challenges ------------ None Game ------ Seed SmallSpikedSteel Manual? 0 Play Time 03:41:20 Cumulative 358.0 hours Start 2024.04.24 @ 17:36:50 End 2024.04.24 @ 22:57:00 Sessions 3 Manual Loads 0 Difficulty Rogue Special Mode None Game No. 233 Rogue 233 Adventurer 0 Explorer 0 Win Type 0 Total 23 Types 16/2/2/1/1/0/0/1/0 Lore% 85 Gallery% 86 Achievement% 79 Wizard Run 0 Options --------- Layout 0 ASCII 0 Keyboard 1 Movement Numpad Keybinds 0 Fullscreen 2 Font 18/SmallcapsGlow Map View 76x50 Zoom Use 0% Tactical HUD 1 Map Filters NONE Filters NONE Steam 1 RUN: 08041c1e-143b-47a8-8e44-30af1cf7c2bf